Workbook

Sheet INICIO
B2: FORMATO SOLICITUD COMPRA
B3: TIQUETES PREPAGO

Sheet INSTRUCTIVO
B5: IN-GF- 001 INSTRUCTIVO DE COMPRA DE TIQUETES
B6: VERSIÓN 005 FECHA VERSIÓN: 01/02/2023
B11: 1. Al seleccionar el botón “FORMULARIO DE COMPRA”, diligenciar la información correspondiente al solicitante: nombre o razón social, documento de identificación o NIT, dirección de recepción de los tiquetes prepago. 2. Seleccione la (s) estación (es) de peje sobre las cuales realizará la compra. 3. Una vez se despliegue la información de tarifas por categoría (tomar en cuenta que las categorias pueden variar en algunas estaciones), diligenciar las casillas (color gris) con el número de tiquetes prepago por cada estación y cada categoría. 4. En la última columna del formulario podrá visualizar el valor de los tiquetes por cada estación de peaje. 5. En el margen inferior derecho el usuario podrá visualizar el valor total de la compra. 6. Realizada la verificación de la información por parte del usuario, pulsar el botón “LIQUIDACIÓN”. 7. En el formulario de liquidación, el usuario podrá visualizar toda la información diligenciada en el “FORMULARIO DE COMPRA”. 8. Adicionalmente, el formulario liquidará el valor correspondiente a los gastos bancarios y los gastos de envío para totalizar el valor de la compra. El usuario seleccionara la opcion del lugar de la consigancion si es Local (Bogota) o a nivel Nacional. 9. El usuario debe imprimir el formato de liquidación y firmarlo, puesto que el archivo será el soporte que garantice el pago efectuado para que la Unión Temporal despache los tiquetes adquiridos. 10. Proceso de pago, validación del pago y entrega de tiquetes prepago: 11. Una vez el usuario tenga a su disposición el valor de adquisición de los tiquetes prepago (“FORMULARIO DE COMPRA”), deberá realizar el pago en el BANCOLOMBIA a la siguiente cuenta bancaria: 12. - No. Cuenta: 031-001021-0 13. - Tipo de cuenta: Ahorros 14. - Nombre de la cuenta: PA Peajes Nacionales Cuenta Recaudo UTPN 15. - Titular: PA FIDUCIARIA CORFICOLOMBIANA SA 16. - NIT: 800.256.769-6 17. Realizado el pago, en la casilla “Pegar Consignación” de la Liquidación, el usuario debe proceder a pegar el soporte de consignación y escanear dicho documento completo. 18. Posteriormente debe remitir al correo “prepagos@utpeajesnacionales.com.co” el documento digital (escaneado). 19. Una vez la UT reciba la información del pago, procederá a la verificación del ingreso a la respectiva cuenta. 20. Identificado el ingreso realizado por el usuario, la Unión Temporal contará con tres (3) días hábiles para el envío si el destino es Bogotá D.C., y seis (6) días hábiles para el envío a destino nacional.

Sheet TARIFASABR2025 (hidden)
C2: TARIFAS 01 ABR 2025 AL 15 ENE 2026
B6: 1 | C6: =+B6+1 -> 2 | D6: =+C6+1 -> 3 | E6: =+D6+1 -> 4 | F6: =+E6+1 -> 5 | G6: =+F6+1 -> 6 | H6: =+G6+1 -> 7 | I6: =+H6+1 -> 8 | J6: =+I6+1 -> 9 | K6: =+J6+1 -> 10 | L6: =+K6+1 -> 11 | M6: =+L6+1 -> 12 | N6: =+M6+1 -> 13 | O6: =+N6+1 -> 14 | P6: =+O6+1 -> 15 | Q6: =+P6+1 -> 16 | R6: =+Q6+1 -> 17 | S6: =+R6+1 -> 18 | T6: =+S6+1 -> 19 | U6: =+T6+1 -> 20 | V6: =+U6+1 -> 21 | W6: =+V6+1 -> 22 | X6: =+W6+1 -> 23 | Y6: =+X6+1 -> 24 | Z6: =+Y6+1 -> 25 | AA6: =+Z6+1 -> 26 | AB6: =+AA6+1 -> 27
A7: No. | B7: Estación de Peaje | C7: Departamento | D7: CATEGORÍAS VEHICULARES 2024 | Y7: EJES 2024 | AC7: FOSEVI 2025
D8: I | E8: IE | F8: IE2 | G8: IEA | H8: IEB | I8: IEQ | J8: II | K8: IIE | L8: IIEE | M8: IIEQ | N8: III | O8: IIIE | P8: IIIP | Q8: IIIG | R8: IV | S8: IVE | T8: V | U8: VB | V8: VE | W8: VI | X8: VII | Y8: E. GRUA | Z8: E. REMOL. | AA8: E. ADIC. | AB8: E. CAÑERO
A9: 1 | B9: ARCABUCO | C9: BOYACA | D9: $ 12,200 | E9: 0 | F9: 0 | G9: 0 | H9: 0 | I9: 0 | J9: $ 13,000 | K9: 0 | L9: 0 | M9: 0 | N9: $ 27,900 | O9: 0 | P9: 0 | Q9: 0 | R9: $ 35,400 | S9: 0 | T9: $ 39,800 | U9: 0 | V9: 0 | W9: 0 | X9: 0 | Y9: $ 9,100 | Z9: $ 12,100 | AA9: $ 12,500 | AB9: 0 | AC9: $ 526
A10: 2 | B10: BICENTENARIO | C10: CUNDINAMARCA | D10: $ 13,000 | E10: $ 6,500 | F10: 0 | G10: 0 | H10: 0 | I10: 0 | J10: $ 17,000 | K10: $ 8,100 | L10: 0 | M10: 0 | N10: $ 39,600 | O10: 0 | P10: 0 | Q10: 0 | R10: $ 48,000 | S10: 0 | T10: $ 55,700 | U10: 0 | V10: 0 | W10: 0 | X10: 0 | Y10: $ 9,100 | Z10: $ 12,100 | AA10: $ 12,500 | AB10: 0 | AC10: $ 526
A11: 3 | B11: T. LA LINEA TOLIMA | C11: TOLIMA | D11: $ 12,400 | E11: $ 2,900 | F11: 0 | G11: 0 | H11: 0 | I11: 0 | J11: $ 13,900 | K11: $ 2,900 | L11: 0 | M11: 0 | N11: $ 28,400 | O11: 0 | P11: 0 | Q11: 0 | R11: $ 36,100 | S11: 0 | T11: $ 40,800 | U11: 0 | V11: 0 | W11: 0 | X11: 0 | Y11: $ 9,100 | Z11: $ 12,100 | AA11: $ 12,500 | AB11: 0 | AC11: $ 526
A12: 4 | B12: T. LA LINEA QUINDIO | C12: QUINDIO | D12: $ 12,400 | E12: $ 2,900 | F12: 0 | G12: 0 | H12: 0 | I12: $ 4,300 | J12: $ 13,900 | K12: $ 2,900 | L12: 0 | M12: $ 4,300 | N12: $ 28,400 | O12: 0 | P12: 0 | Q12: 0 | R12: $ 36,100 | S12: 0 | T12: $ 40,800 | U12: 0 | V12: 0 | W12: 0 | X12: 0 | Y12: $ 9,100 | Z12: $ 12,100 | AA12: $ 12,500 | AB12: 0 | AC12: $ 526
A13: 5 | B13: CANO | C13: NARIÑO | D13: $ 14,800 | E13: 0 | F13: 0 | G13: 0 | H13: 0 | I13: 0 | J13: $ 15,800 | K13: 0 | L13: 0 | M13: 0 | N13: $ 32,300 | O13: 0 | P13: 0 | Q13: 0 | R13: $ 42,400 | S13: 0 | T13: $ 48,900 | U13: 0 | V13: 0 | W13: 0 | X13: 0 | Y13: $ 9,400 | Z13: $ 13,800 | AA13: $ 14,100 | AB13: 0 | AC13: $ 526
A14: 6 | B14: CARIMAGUA | C14: CORDOBA | D14: $ 17,700 | E14: 0 | F14: 0 | G14: 0 | H14: 0 | I14: 0 | J14: $ 25,300 | K14: 0 | L14: 0 | M14: 0 | N14: $ 25,300 | O14: 0 | P14: 0 | Q14: 0 | R14: $ 25,300 | S14: 0 | T14: $ 45,900 | U14: 0 | V14: 0 | W14: $ 72,800 | X14: $ 84,100 | Y14: 0 | Z14: 0 | AA14: 0 | AB14: 0 | AC14: $ 526
A15: 7 | B15: EL CRUCERO | C15: BOYACA | D15: $ 12,200 | E15: $ 3,200 | F15: 0 | G15: 0 | H15: 0 | I15: 0 | J15: $ 13,000 | K15: $ 3,500 | L15: 0 | M15: 0 | N15: $ 27,900 | O15: 0 | P15: 0 | Q15: 0 | R15: $ 35,400 | S15: 0 | T15: $ 39,800 | U15: 0 | V15: 0 | W15: 0 | X15: 0 | Y15: $ 9,100 | Z15: $ 12,100 | AA15: $ 12,500 | AB15: 0 | AC15: $ 526
A16: 8 | B16: EL BORDO | C16: CAUCA | D16: $ 12,400 | E16: 0 | F16: 0 | G16: 0 | H16: 0 | I16: 0 | J16: $ 13,900 | K16: 0 | L16: 0 | M16: 0 | N16: $ 28,400 | O16: 0 | P16: 0 | Q16: 0 | R16: $ 36,100 | S16: 0 | T16: $ 40,800 | U16: 0 | V16: 0 | W16: 0 | X16: 0 | Y16: $ 9,100 | Z16: $ 12,100 | AA16: $ 12,500 | AB16: 0 | AC16: $ 526
A17: 9 | B17: LOS LLANOS | C17: ANTIOQUIA | D17: $ 12,400 | E17: $ 6,500 | F17: 0 | G17: 0 | H17: 0 | I17: 0 | J17: $ 13,900 | K17: $ 6,900 | L17: 0 | M17: 0 | N17: $ 28,400 | O17: 0 | P17: 0 | Q17: 0 | R17: $ 36,100 | S17: 0 | T17: $ 40,800 | U17: 0 | V17: 0 | W17: 0 | X17: 0 | Y17: $ 9,100 | Z17: $ 12,100 | AA17: $ 12,500 | AB17: 0 | AC17: $ 526
A18: 10 | B18: RIO BLANCO | C18: SANTANDER | D18: $ 12,400 | E18: $ 500 | F18: 0 | G18: 0 | H18: 0 | I18: 0 | J18: $ 13,900 | K18: $ 500 | L18: 0 | M18: 0 | N18: $ 28,400 | O18: 0 | P18: 0 | Q18: 0 | R18: $ 36,100 | S18: 0 | T18: $ 40,800 | U18: 0 | V18: 0 | W18: 0 | X18: 0 | Y18: $ 9,100 | Z18: $ 12,100 | AA18: $ 12,500 | AB18: 0 | AC18: $ 526
A19: 11 | B19: RIO FRIO | C19: VALLE DEL CAUCA | D19: $ 12,200 | E19: 0 | F19: 0 | G19: 0 | H19: 0 | I19: 0 | J19: $ 13,000 | K19: 0 | L19: 0 | M19: 0 | N19: $ 27,900 | O19: 0 | P19: 0 | Q19: 0 | R19: $ 35,400 | S19: 0 | T19: $ 39,800 | U19: 0 | V19: 0 | W19: 0 | X19: 0 | Y19: $ 9,100 | Z19: $ 12,100 | AA19: $ 12,500 | AB19: $ 9,800 | AC19: $ 526
A20: 12 | B20: SACHICA | C20: BOYACA | D20: $ 12,200 | E20: $ 4,100 | F20: 0 | G20: 0 | H20: 0 | I20: 0 | J20: $ 13,000 | K20: $ 4,100 | L20: 0 | M20: 0 | N20: $ 27,900 | O20: 0 | P20: 0 | Q20: 0 | R20: $ 35,400 | S20: 0 | T20: $ 39,800 | U20: 0 | V20: 0 | W20: 0 | X20: 0 | Y20: $ 9,100 | Z20: $ 12,100 | AA20: $ 12,500 | AB20: 0 | AC20: $ 526
A21: 13 | B21: SAN CLEMENTE | C21: CALDAS | D21: $ 12,200 | E21: 0 | F21: 0 | G21: 0 | H21: 0 | I21: 0 | J21: $ 13,000 | K21: 0 | L21: 0 | M21: 0 | N21: $ 27,900 | O21: 0 | P21: 0 | Q21: 0 | R21: $ 35,400 | S21: 0 | T21: $ 39,800 | U21: 0 | V21: 0 | W21: 0 | X21: 0 | Y21: $ 9,100 | Z21: $ 12,100 | AA21: $ 12,500 | AB21: 0 | AC21: $ 526
A22: 14 | B22: TORO | C22: VALLE DEL CAUCA | D22: $ 12,200 | E22: $ 3,600 | F22: 0 | G22: 0 | H22: 0 | I22: 0 | J22: $ 13,000 | K22: $ 4,100 | L22: 0 | M22: 0 | N22: $ 27,900 | O22: 0 | P22: 0 | Q22: 0 | R22: $ 35,400 | S22: 0 | T22: $ 39,800 | U22: 0 | V22: 0 | W22: 0 | X22: 0 | Y22: $ 9,100 | Z22: $ 12,100 | AA22: $ 12,500 | AB22: $ 9,800 | AC22: $ 526
A23: 15 | B23: TARAZA | C23: ANTIOQUIA | D23: $ 12,400 | E23: $ 8,200 | F23: 0 | G23: 0 | H23: 0 | I23: 0 | J23: $ 13,900 | K23: 0 | L23: 0 | M23: 0 | N23: $ 28,400 | O23: 0 | P23: 0 | Q23: 0 | R23: $ 36,100 | S23: 0 | T23: $ 40,800 | U23: 0 | V23: 0 | W23: 0 | X23: 0 | Y23: $ 9,100 | Z23: $ 12,100 | AA23: $ 12,500 | AB23: 0 | AC23: $ 526
A24: 16 | B24: CASABLANCA | C24: CUNDINAMARCA | D24: $ 12,100 | E24: 0 | F24: 0 | G24: 0 | H24: 0 | I24: 0 | J24: $ 12,900 | K24: 0 | L24: 0 | M24: 0 | N24: $ 33,500 | O24: 0 | P24: 0 | Q24: 0 | R24: $ 41,500 | S24: 0 | T24: $ 48,600 | U24: 0 | V24: 0 | W24: 0 | X24: 0 | Y24: $ 9,800 | Z24: $ 14,000 | AA24: $ 14,300 | AB24: 0 | AC24: $ 526
A25: 17 | B25: SABOYÁ | C25: BOYACA | D25: $ 12,100 | E25: $ 3,400 | F25: 0 | G25: 0 | H25: 0 | I25: 0 | J25: $ 12,900 | K25: $ 3,400 | L25: 0 | M25: 0 | N25: $ 33,500 | O25: 0 | P25: 0 | Q25: 0 | R25: $ 41,500 | S25: 0 | T25: $ 48,600 | U25: 0 | V25: 0 | W25: 0 | X25: 0 | Y25: $ 9,800 | Z25: $ 14,000 | AA25: $ 14,300 | AB25: 0 | AC25: $ 526
A26: 18 | B26: OIBA | C26: SANTANDER | D26: $ 12,100 | E26: $ 1,300 | F26: 0 | G26: 0 | H26: 0 | I26: 0 | J26: $ 12,900 | K26: $ 1,300 | L26: 0 | M26: 0 | N26: $ 33,500 | O26: 0 | P26: 0 | Q26: 0 | R26: $ 41,500 | S26: 0 | T26: $ 48,600 | U26: 0 | V26: 0 | W26: 0 | X26: 0 | Y26: $ 9,800 | Z26: $ 14,000 | AA26: $ 14,300 | AB26: 0 | AC26: $ 526
A27: 19 | B27: CURITI | C27: SANTANDER | D27: $ 12,100 | E27: $ 9,100 | F27: 0 | G27: 0 | H27: 0 | I27: 0 | J27: $ 12,900 | K27: 0 | L27: 0 | M27: 0 | N27: $ 33,500 | O27: 0 | P27: 0 | Q27: 0 | R27: $ 41,500 | S27: 0 | T27: $ 48,600 | U27: 0 | V27: 0 | W27: 0 | X27: 0 | Y27: $ 9,800 | Z27: $ 14,000 | AA27: $ 14,300 | AB27: 0 | AC27: $ 526
A28: 20 | B28: LOS CUROS | C28: SANTANDER | D28: $ 12,100 | E28: 0 | F28: 0 | G28: 0 | H28: 0 | I28: 0 | J28: $ 12,900 | K28: 0 | L28: 0 | M28: 0 | N28: $ 33,500 | O28: 0 | P28: 0 | Q28: 0 | R28: $ 41,500 | S28: 0 | T28: $ 48,600 | U28: 0 | V28: 0 | W28: 0 | X28: 0 | Y28: $ 9,800 | Z28: $ 14,000 | AA28: $ 14,300 | AB28: 0 | AC28: $ 526
A29: 21 | B29: PLATANAL | C29: CESAR | D29: $ 11,800 | E29: $ 500 | F29: 0 | G29: 0 | H29: 0 | I29: 0 | J29: $ 13,000 | K29: $ 500 | L29: $ 6,900 | M29: 0 | N29: $ 27,400 | O29: $ 14,200 | P29: 0 | Q29: 0 | R29: $ 34,800 | S29: $ 17,900 | T29: $ 39,800 | U29: 0 | V29: $ 20,200 | W29: 0 | X29: 0 | Y29: $ 9,100 | Z29: $ 12,100 | AA29: $ 12,500 | AB29: 0 | AC29: $ 526
A30: 22 | B30: SAN DIEGO | C30: CESAR | D30: $ 7,000 | E30: $ 5,000 | F30: 0 | G30: 0 | H30: 0 | I30: 0 | J30: $ 7,600 | K30: 0 | L30: 0 | M30: 0 | N30: $ 8,200 | O30: 0 | P30: 0 | Q30: 0 | R30: $ 8,800 | S30: 0 | T30: $ 18,100 | U30: $ 38,900 | V30: 0 | W30: $ 51,900 | X30: $ 58,900 | Y30: 0 | Z30: 0 | AA30: 0 | AB30: 0 | AC30: $ 526
A31: 23 | B31: RINCÓN HONDO | C31: CESAR | D31: $ 14,000 | E31: 0 | F31: 0 | G31: 0 | H31: 0 | I31: 0 | J31: $ 14,800 | K31: 0 | L31: 0 | M31: 0 | N31: $ 16,000 | O31: 0 | P31: 0 | Q31: 0 | R31: $ 16,900 | S31: 0 | T31: $ 18,200 | U31: $ 38,900 | V31: 0 | W31: $ 51,900 | X31: $ 59,500 | Y31: 0 | Z31: 0 | AA31: 0 | AB31: 0 | AC31: $ 526
A32: 24 | B32: SAN JUAN | C32: CESAR | D32: 0 | E32: 0 | F32: 0 | G32: $ 7,000 | H32: $ 3,200 | I32: 0 | J32: $ 14,000 | K32: $ 3,200 | L32: 0 | M32: 0 | N32: $ 28,500 | O32: 0 | P32: 0 | Q32: 0 | R32: $ 36,200 | S32: 0 | T32: $ 40,900 | U32: 0 | V32: 0 | W32: 0 | X32: 0 | Y32: $ 7,300 | Z32: $ 9,700 | AA32: $ 9,900 | AB32: 0 | AC32: $ 526
A33: 25 | B33: COCORNA | C33: ANTIOQUIA | D33: $ 17,900 | E33: $ 1,700 | F33: 0 | G33: 0 | H33: 0 | I33: 0 | J33: $ 27,900 | K33: $ 1,700 | L33: 0 | M33: 0 | N33: $ 24,400 | O33: $ 1,700 | P33: 0 | Q33: 0 | R33: $ 30,300 | S33: $ 1,700 | T33: $ 60,600 | U33: 0 | V33: 0 | W33: $ 86,200 | X33: $ 86,200 | Y33: 0 | Z33: 0 | AA33: 0 | AB33: 0 | AC33: $ 526
A34: 26 | B34: PUERTO TRIUNFO | C34: ANTIOQUIA | D34: $ 17,900 | E34: 0 | F34: 0 | G34: 0 | H34: 0 | I34: 0 | J34: $ 27,900 | K34: 0 | L34: 0 | M34: 0 | N34: $ 24,400 | O34: 0 | P34: 0 | Q34: 0 | R34: $ 30,300 | S34: 0 | T34: $ 60,600 | U34: 0 | V34: 0 | W34: $ 86,200 | X34: $ 86,200 | Y34: 0 | Z34: 0 | AA34: 0 | AB34: 0 | AC34: $ 526
A35: 27 | B35: CERRITOS II | C35: RISARALDA | D35: $ 17,800 | E35: $ 4,100 | F35: 0 | G35: 0 | H35: 0 | I35: 0 | J35: $ 20,200 | K35: $ 13,100 | L35: 0 | M35: 0 | N35: $ 49,600 | O35: 0 | P35: 0 | Q35: 0 | R35: $ 64,800 | S35: 0 | T35: $ 74,200 | U35: 0 | V35: 0 | W35: 0 | X35: 0 | Y35: $ 14,900 | Z35: $ 21,900 | AA35: $ 22,100 | AB35: 0 | AC35: $ 526
A36: 28 | B36: LA PARADA | C36: NORTE DE SANTANDER | D36: $ 2,700 | E36: 0 | F36: 0 | G36: 0 | H36: 0 | I36: 0 | J36: $ 2,700 | K36: 0 | L36: 0 | M36: 0 | N36: $ 2,700 | O36: 0 | P36: 0 | Q36: 0 | R36: $ 2,700 | S36: 0 | T36: $ 2,700 | U36: 0 | V36: 0 | W36: 0 | X36: 0 | Y36: $ 2,700 | Z36: 0 | AA36: $ 2,700 | AB36: 0 | AC36: $ 526
A37: 29 | B37: EL KORAN | C37: CUNDINAMARCA | D37: $ 18,900 | E37: $ 4,300 | F37: 0 | G37: 0 | H37: 0 | I37: 0 | J37: $ 26,400 | K37: $ 4,300 | L37: 0 | M37: 0 | N37: 0 | O37: 0 | P37: $ 37,100 | Q37: $ 37,100 | R37: $ 77,200 | S37: 0 | T37: $ 95,800 | U37: 0 | V37: 0 | W37: $ 113,600 | X37: 0 | Y37: $ 9,400 | Z37: $ 12,600 | AA37: $ 13,100 | AB37: 0 | AC37: $ 526
A38: 30 | B38: RIO BOGOTA | C38: CUNDINAMARCA | D38: $ 11,800 | E38: $ 500 | F38: 0 | G38: 0 | H38: 0 | I38: 0 | J38: $ 17,600 | K38: $ 500 | L38: 0 | M38: 0 | N38: $ 15,400 | O38: $ 500 | P38: 0 | Q38: 0 | R38: $ 20,300 | S38: $ 500 | T38: $ 34,400 | U38: 0 | V38: 0 | W38: $ 46,400 | X38: $ 50,200 | Y38: 0 | Z38: 0 | AA38: 0 | AB38: 0 | AC38: $ 526
A39: 31 | B39: CORZO | C39: CUNDINAMARCA | D39: $ 11,800 | E39: $ 500 | F39: 0 | G39: 0 | H39: 0 | I39: 0 | J39: $ 17,600 | K39: $ 500 | L39: 0 | M39: 0 | N39: $ 15,400 | O39: $ 500 | P39: 0 | Q39: 0 | R39: $ 20,300 | S39: $ 500 | T39: $ 34,400 | U39: 0 | V39: 0 | W39: $ 46,400 | X39: $ 50,200 | Y39: 0 | Z39: 0 | AA39: 0 | AB39: 0 | AC39: $ 526
B40: GARZON I | C40: CORDOBA | D40: $ 6,100 | E40: $ 2,400 | F40: $ 6,500 | G40: 0 | H40: 0 | I40: 0 | J40: $ 15,600 | K40: $ 4,600 | L40: 0 | M40: 0 | N40: $ 24,200 | O40: 0 | P40: 0 | Q40: 0 | R40: $ 30,600 | S40: 0 | T40: $ 35,000 | U40: 0 | V40: 0 | W40: 0 | X40: 0 | Y40: 0 | Z40: 0 | AA40: 0 | AB40: 0 | AC40: $ 526
B41: GARZON II | C41: CORDOBA | D41: $ 6,100 | E41: $ 2,400 | F41: $ 6,500 | G41: 0 | H41: 0 | I41: 0 | J41: $ 15,600 | K41: $ 4,600 | L41: 0 | M41: 0 | N41: $ 24,200 | O41: 0 | P41: 0 | Q41: 0 | R41: $ 30,600 | S41: 0 | T41: $ 35,000 | U41: 0 | V41: 0 | W41: 0 | X41: 0 | Y41: 0 | Z41: 0 | AA41: 0 | AB41: 0 | AC41: $ 526
B42: LA ESPERANZA | C42: SUCRE | D42: $ 6,100 | E42: $ 2,400 | F42: $ 5,600 | G42: 0 | H42: 0 | I42: 0 | J42: $ 15,600 | K42: $ 4,600 | L42: 0 | M42: 0 | N42: $ 24,200 | O42: 0 | P42: 0 | Q42: 0 | R42: $ 30,600 | S42: 0 | T42: $ 35,000 | U42: 0 | V42: 0 | W42: 0 | X42: 0 | Y42: 0 | Z42: 0 | AA42: 0 | AB42: 0 | AC42: $ 526
B43: LAS FLORES | C43: SUCRE | D43: $ 10,900 | E43: $ 3,000 | F43: $ 5,800 | G43: 0 | H43: 0 | I43: 0 | J43: $ 11,800 | K43: 0 | L43: 0 | M43: 0 | N43: $ 25,300 | O43: 0 | P43: 0 | Q43: 0 | R43: $ 31,800 | S43: 0 | T43: $ 36,100 | U43: 0 | V43: 0 | W43: 0 | X43: 0 | Y43: $ 8,300 | Z43: $ 10,900 | AA43: $ 11,300 | AB43: 0 | AC43: $ 526

Sheet FORMULARIO
B2: F-GF-019 | C2: FORMULARIO DE COMPRA | AB2: 1
C3: TIQUETES PREPAGO | AB3: =+AB2+1 -> 2
B4: VERSIÓN | C4: 015 | AB4: =+AB3+1 -> 3
B5: FECHA VERSIÓN | C5: 2025-05-13 | AB5: 4
AB6: 5
B7: Fecha | AB7: 6
AB8: 7
B9: Nombre del Cliente | M9: Documento ID | W9: No. | AB9: 8
AB10: 9
B11: Direccion de envio Tiquetes | M11: Ciudad | V11: Departamento | AB11: 10
B12: Contacto | AB12: 11
B13: N° Celular Contacto | O13: E_MAIL | AB13: 12
AB14: 13
A15: No. | B15: Peaje | C15: DEPARTAMENTO | D15: Cant | E15: =+CONCATENATE("Tar Cat ",TARIFASABR2025!D8) -> Tar Cat I | F15: Cant | G15: =+CONCATENATE("Tar Cat ",TARIFASABR2025!F8) -> Tar Cat IE2 | H15: Cant | I15: =+CONCATENATE("Tar Cat ",TARIFASABR2025!J8) -> Tar Cat II | J15: Cant | K15: =+CONCATENATE("Tar Cat ",TARIFASABR2025!N8) -> Tar Cat III | L15: Cant | M15: =+CONCATENATE("Tar Cat ",TARIFASABR2025!P8) -> Tar Cat IIIP | N15: Cant | O15: =+CONCATENATE("Tar Cat ",TARIFASABR2025!Q8) -> Tar Cat IIIG | P15: Cant | Q15: =+CONCATENATE("Tar Cat ",TARIFASABR2025!R8) -> Tar Cat IV | R15: Cant | S15: =+CONCATENATE("Tar Cat ",TARIFASABR2025!T8) -> Tar Cat V | T15: Cant | U15: =+CONCATENATE("Tar Cat ",TARIFASABR2025!W8) -> Tar Cat VI | V15: Cant | W15: =+CONCATENATE("Tar Cat ",TARIFASABR2025!X8) -> Tar Cat VII | X15: Total Cant | Y15: Valor total | AB15: 14 | AC15: =+M9 -> Documento ID
A16: =IF(B16>"",1,"") ->  | C16: =IF(B16="","",VLOOKUP(B16,TARIFASABR2025!$B$7:$C$44,TARIFASABR2025!$C$6,0)) ->  | E16: =IF(B16="","",VLOOKUP(B16,TARIFASABR2025!$B$9:$X$44,TARIFASABR2025!$D$6,0)) ->  | G16: =IF(B16="","",VLOOKUP(B16,TARIFASABR2025!$B$9:$X$44,TARIFASABR2025!$F$6,0)) ->  | I16: =IF(B16="","",VLOOKUP(B16,TARIFASABR2025!$B$9:$X$44,TARIFASABR2025!$J$6,0)) ->  | K16: =IF(B16="","",VLOOKUP(B16,TARIFASABR2025!$B$9:$X$44,TARIFASABR2025!$N$6,0)) ->  | M16: =IF(B16="","",VLOOKUP(B16,TARIFASABR2025!$B$9:$X$44,TARIFASABR2025!$P$6,0)) ->  | O16: =IF(B16="","",VLOOKUP(B16,TARIFASABR2025!$B$9:$X$44,TARIFASABR2025!$Q$6,0)) ->  | Q16: =IF(B16="","",VLOOKUP(B16,TARIFASABR2025!$B$9:$X$44,TARIFASABR2025!$R$6,0)) ->  | S16: =IF(B16="","",VLOOKUP(B16,TARIFASABR2025!$B$9:$X$44,TARIFASABR2025!$T$6,0)) ->  | U16: =IF(B16="","",VLOOKUP(B16,TARIFASABR2025!$B$9:$X$44,TARIFASABR2025!$W$6,0)) ->  | W16: =IF(B16="","",VLOOKUP(B16,TARIFASABR2025!$B$9:$X$44,TARIFASABR2025!$X$6,0)) ->  | X16: =+IF(B16="","",IF(B16=$AC$32,D16+F16+H16+J16+L16+N16+P16+R16+T16+V16,IF(B16=$AC$33,D16+H16+J16+L16+N16+P16+R16+T16+V16,IF(B16=$AC$34,D16+F16+H16+J16+P16+R16+T16+V16,IF(B16=$AC$35,D16+F16+H16+J16+P16+R16+T16+V16,IF(B16=$AC$36,D16+F16+H16+J16+L16+N16+P16+R16+T16+V16,SUM(D16,F16,H16,J16,P16,R16))))))) ->  | Y16: =+IF(C16="",0,(D16*E16)+(F16*G16)+(H16*I16)+(J16*K16)+(L16*M16)+(N16*O16)+(P16*Q16)+(R16*S16)+(T16*U16)+(V16*W16)) -> 0 | AB16: 15
A17: =IF(A16<1,"",IF(B17="","",IF(A16="","",A16+1))) ->  | C17: =IF(B17="","",VLOOKUP(B17,TARIFASABR2025!$B$7:$C$44,TARIFASABR2025!$C$6,0)) ->  | E17: =IF(B17="","",VLOOKUP(B17,TARIFASABR2025!$B$9:$X$44,TARIFASABR2025!$D$6,0)) ->  | G17: =IF(B17="","",VLOOKUP(B17,TARIFASABR2025!$B$9:$X$44,TARIFASABR2025!$F$6,0)) ->  | I17: =IF(B17="","",VLOOKUP(B17,TARIFASABR2025!$B$9:$X$44,TARIFASABR2025!$J$6,0)) ->  | K17: =IF(B17="","",VLOOKUP(B17,TARIFASABR2025!$B$9:$X$44,TARIFASABR2025!$N$6,0)) ->  | M17: =IF(B17="","",VLOOKUP(B17,TARIFASABR2025!$B$9:$X$44,TARIFASABR2025!$P$6,0)) ->  | O17: =IF(B17="","",VLOOKUP(B17,TARIFASABR2025!$B$9:$X$44,TARIFASABR2025!$Q$6,0)) ->  | Q17: =IF(B17="","",VLOOKUP(B17,TARIFASABR2025!$B$9:$X$44,TARIFASABR2025!$R$6,0)) ->  | S17: =IF(B17="","",VLOOKUP(B17,TARIFASABR2025!$B$9:$X$44,TARIFASABR2025!$T$6,0)) ->  | U17: =IF(B17="","",VLOOKUP(B17,TARIFASABR2025!$B$9:$X$44,TARIFASABR2025!$W$6,0)) ->  | W17: =IF(B17="","",VLOOKUP(B17,TARIFASABR2025!$B$9:$X$44,TARIFASABR2025!$X$6,0)) ->  | X17: =+IF(B17="","",IF(B17=$AC$32,D17+F17+H17+J17+L17+N17+P17+R17+T17+V17,IF(B17=$AC$33,D17+H17+J17+L17+N17+P17+R17+T17+V17,IF(B17=$AC$34,D17+F17+H17+J17+P17+R17+T17+V17,IF(B17=$AC$35,D17+F17+H17+J17+P17+R17+T17+V17,IF(B17=$AC$36,D17+F17+H17+J17+L17+N17+P17+R17+T17+V17,SUM(D17,F17,H17,J17,P17,R17))))))) ->  | Y17: =+IF(C17="",0,(D17*E17)+(F17*G17)+(H17*I17)+(J17*K17)+(L17*M17)+(N17*O17)+(P17*Q17)+(R17*S17)+(T17*U17)+(V17*W17)) -> 0 | AB17: 16 | AC17: NIT
C18: =IF(B18="","",VLOOKUP(B18,TARIFASABR2025!$B$7:$C$44,TARIFASABR2025!$C$6,0)) ->  | E18: =IF(B18="","",VLOOKUP(B18,TARIFASABR2025!$B$9:$X$44,TARIFASABR2025!$D$6,0)) ->  | G18: =IF(B18="","",VLOOKUP(B18,TARIFASABR2025!$B$9:$X$44,TARIFASABR2025!$F$6,0)) ->  | I18: =IF(B18="","",VLOOKUP(B18,TARIFASABR2025!$B$9:$X$44,TARIFASABR2025!$J$6,0)) ->  | K18: =IF(B18="","",VLOOKUP(B18,TARIFASABR2025!$B$9:$X$44,TARIFASABR2025!$N$6,0)) ->  | M18: =IF(B18="","",VLOOKUP(B18,TARIFASABR2025!$B$9:$X$44,TARIFASABR2025!$P$6,0)) ->  | O18: =IF(B18="","",VLOOKUP(B18,TARIFASABR2025!$B$9:$X$44,TARIFASABR2025!$Q$6,0)) ->  | Q18: =IF(B18="","",VLOOKUP(B18,TARIFASABR2025!$B$9:$X$44,TARIFASABR2025!$R$6,0)) ->  | S18: =IF(B18="","",VLOOKUP(B18,TARIFASABR2025!$B$9:$X$44,TARIFASABR2025!$T$6,0)) ->  | U18: =IF(B18="","",VLOOKUP(B18,TARIFASABR2025!$B$9:$X$44,TARIFASABR2025!$W$6,0)) ->  | W18: =IF(B18="","",VLOOKUP(B18,TARIFASABR2025!$B$9:$X$44,TARIFASABR2025!$X$6,0)) ->  | Y18: 0 | AB18: 17 | AC18: Pasaporte
C19: =IF(B19="","",VLOOKUP(B19,TARIFASABR2025!$B$7:$C$44,TARIFASABR2025!$C$6,0)) ->  | E19: =IF(B19="","",VLOOKUP(B19,TARIFASABR2025!$B$9:$X$44,TARIFASABR2025!$D$6,0)) ->  | G19: =IF(B19="","",VLOOKUP(B19,TARIFASABR2025!$B$9:$X$44,TARIFASABR2025!$F$6,0)) ->  | I19: =IF(B19="","",VLOOKUP(B19,TARIFASABR2025!$B$9:$X$44,TARIFASABR2025!$J$6,0)) ->  | K19: =IF(B19="","",VLOOKUP(B19,TARIFASABR2025!$B$9:$X$44,TARIFASABR2025!$N$6,0)) ->  | M19: =IF(B19="","",VLOOKUP(B19,TARIFASABR2025!$B$9:$X$44,TARIFASABR2025!$P$6,0)) ->  | O19: =IF(B19="","",VLOOKUP(B19,TARIFASABR2025!$B$9:$X$44,TARIFASABR2025!$Q$6,0)) ->  | Q19: =IF(B19="","",VLOOKUP(B19,TARIFASABR2025!$B$9:$X$44,TARIFASABR2025!$R$6,0)) ->  | S19: =IF(B19="","",VLOOKUP(B19,TARIFASABR2025!$B$9:$X$44,TARIFASABR2025!$T$6,0)) ->  | U19: =IF(B19="","",VLOOKUP(B19,TARIFASABR2025!$B$9:$X$44,TARIFASABR2025!$W$6,0)) ->  | W19: =IF(B19="","",VLOOKUP(B19,TARIFASABR2025!$B$9:$X$44,TARIFASABR2025!$X$6,0)) ->  | Y19: 0 | AB19: 18 | AC19: Cedula de Ciudadania
C20: =IF(B20="","",VLOOKUP(B20,TARIFASABR2025!$B$7:$C$44,TARIFASABR2025!$C$6,0)) ->  | E20: =IF(B20="","",VLOOKUP(B20,TARIFASABR2025!$B$9:$X$44,TARIFASABR2025!$D$6,0)) ->  | G20: =IF(B20="","",VLOOKUP(B20,TARIFASABR2025!$B$9:$X$44,TARIFASABR2025!$F$6,0)) ->  | I20: =IF(B20="","",VLOOKUP(B20,TARIFASABR2025!$B$9:$X$44,TARIFASABR2025!$J$6,0)) ->  | K20: =IF(B20="","",VLOOKUP(B20,TARIFASABR2025!$B$9:$X$44,TARIFASABR2025!$N$6,0)) ->  | M20: =IF(B20="","",VLOOKUP(B20,TARIFASABR2025!$B$9:$X$44,TARIFASABR2025!$P$6,0)) ->  | O20: =IF(B20="","",VLOOKUP(B20,TARIFASABR2025!$B$9:$X$44,TARIFASABR2025!$Q$6,0)) ->  | Q20: =IF(B20="","",VLOOKUP(B20,TARIFASABR2025!$B$9:$X$44,TARIFASABR2025!$R$6,0)) ->  | S20: =IF(B20="","",VLOOKUP(B20,TARIFASABR2025!$B$9:$X$44,TARIFASABR2025!$T$6,0)) ->  | U20: =IF(B20="","",VLOOKUP(B20,TARIFASABR2025!$B$9:$X$44,TARIFASABR2025!$W$6,0)) ->  | W20: =IF(B20="","",VLOOKUP(B20,TARIFASABR2025!$B$9:$X$44,TARIFASABR2025!$X$6,0)) ->  | Y20: 0 | AB20: 19 | AC20: Cedula de Extranjeria
C21: =IF(B21="","",VLOOKUP(B21,TARIFASABR2025!$B$7:$C$44,TARIFASABR2025!$C$6,0)) ->  | E21: =IF(B21="","",VLOOKUP(B21,TARIFASABR2025!$B$9:$X$44,TARIFASABR2025!$D$6,0)) ->  | G21: =IF(B21="","",VLOOKUP(B21,TARIFASABR2025!$B$9:$X$44,TARIFASABR2025!$F$6,0)) ->  | I21: =IF(B21="","",VLOOKUP(B21,TARIFASABR2025!$B$9:$X$44,TARIFASABR2025!$J$6,0)) ->  | K21: =IF(B21="","",VLOOKUP(B21,TARIFASABR2025!$B$9:$X$44,TARIFASABR2025!$N$6,0)) ->  | M21: =IF(B21="","",VLOOKUP(B21,TARIFASABR2025!$B$9:$X$44,TARIFASABR2025!$P$6,0)) ->  | O21: =IF(B21="","",VLOOKUP(B21,TARIFASABR2025!$B$9:$X$44,TARIFASABR2025!$Q$6,0)) ->  | Q21: =IF(B21="","",VLOOKUP(B21,TARIFASABR2025!$B$9:$X$44,TARIFASABR2025!$R$6,0)) ->  | S21: =IF(B21="","",VLOOKUP(B21,TARIFASABR2025!$B$9:$X$44,TARIFASABR2025!$T$6,0)) ->  | U21: =IF(B21="","",VLOOKUP(B21,TARIFASABR2025!$B$9:$X$44,TARIFASABR2025!$W$6,0)) ->  | W21: =IF(B21="","",VLOOKUP(B21,TARIFASABR2025!$B$9:$X$44,TARIFASABR2025!$X$6,0)) ->  | Y21: 0 | AB21: 20 | AC21: Otro
C22: =IF(B22="","",VLOOKUP(B22,TARIFASABR2025!$B$7:$C$44,TARIFASABR2025!$C$6,0)) ->  | E22: =IF(B22="","",VLOOKUP(B22,TARIFASABR2025!$B$9:$X$44,TARIFASABR2025!$D$6,0)) ->  | G22: =IF(B22="","",VLOOKUP(B22,TARIFASABR2025!$B$9:$X$44,TARIFASABR2025!$F$6,0)) ->  | I22: =IF(B22="","",VLOOKUP(B22,TARIFASABR2025!$B$9:$X$44,TARIFASABR2025!$J$6,0)) ->  | K22: =IF(B22="","",VLOOKUP(B22,TARIFASABR2025!$B$9:$X$44,TARIFASABR2025!$N$6,0)) ->  | M22: =IF(B22="","",VLOOKUP(B22,TARIFASABR2025!$B$9:$X$44,TARIFASABR2025!$P$6,0)) ->  | O22: =IF(B22="","",VLOOKUP(B22,TARIFASABR2025!$B$9:$X$44,TARIFASABR2025!$Q$6,0)) ->  | Q22: =IF(B22="","",VLOOKUP(B22,TARIFASABR2025!$B$9:$X$44,TARIFASABR2025!$R$6,0)) ->  | S22: =IF(B22="","",VLOOKUP(B22,TARIFASABR2025!$B$9:$X$44,TARIFASABR2025!$T$6,0)) ->  | U22: =IF(B22="","",VLOOKUP(B22,TARIFASABR2025!$B$9:$X$44,TARIFASABR2025!$W$6,0)) ->  | W22: =IF(B22="","",VLOOKUP(B22,TARIFASABR2025!$B$9:$X$44,TARIFASABR2025!$X$6,0)) ->  | Y22: 0 | AB22: 21
C23: =IF(B23="","",VLOOKUP(B23,TARIFASABR2025!$B$7:$C$44,TARIFASABR2025!$C$6,0)) ->  | E23: =IF(B23="","",VLOOKUP(B23,TARIFASABR2025!$B$9:$X$44,TARIFASABR2025!$D$6,0)) ->  | G23: =IF(B23="","",VLOOKUP(B23,TARIFASABR2025!$B$9:$X$44,TARIFASABR2025!$F$6,0)) ->  | I23: =IF(B23="","",VLOOKUP(B23,TARIFASABR2025!$B$9:$X$44,TARIFASABR2025!$J$6,0)) ->  | K23: =IF(B23="","",VLOOKUP(B23,TARIFASABR2025!$B$9:$X$44,TARIFASABR2025!$N$6,0)) ->  | M23: =IF(B23="","",VLOOKUP(B23,TARIFASABR2025!$B$9:$X$44,TARIFASABR2025!$P$6,0)) ->  | O23: =IF(B23="","",VLOOKUP(B23,TARIFASABR2025!$B$9:$X$44,TARIFASABR2025!$Q$6,0)) ->  | Q23: =IF(B23="","",VLOOKUP(B23,TARIFASABR2025!$B$9:$X$44,TARIFASABR2025!$R$6,0)) ->  | S23: =IF(B23="","",VLOOKUP(B23,TARIFASABR2025!$B$9:$X$44,TARIFASABR2025!$T$6,0)) ->  | U23: =IF(B23="","",VLOOKUP(B23,TARIFASABR2025!$B$9:$X$44,TARIFASABR2025!$W$6,0)) ->  | W23: =IF(B23="","",VLOOKUP(B23,TARIFASABR2025!$B$9:$X$44,TARIFASABR2025!$X$6,0)) ->  | Y23: 0 | AB23: 22 | AC23: ARCABUCO
C24: =IF(B24="","",VLOOKUP(B24,TARIFASABR2025!$B$7:$C$44,TARIFASABR2025!$C$6,0)) ->  | E24: =IF(B24="","",VLOOKUP(B24,TARIFASABR2025!$B$9:$X$44,TARIFASABR2025!$D$6,0)) ->  | G24: =IF(B24="","",VLOOKUP(B24,TARIFASABR2025!$B$9:$X$44,TARIFASABR2025!$F$6,0)) ->  | I24: =IF(B24="","",VLOOKUP(B24,TARIFASABR2025!$B$9:$X$44,TARIFASABR2025!$J$6,0)) ->  | K24: =IF(B24="","",VLOOKUP(B24,TARIFASABR2025!$B$9:$X$44,TARIFASABR2025!$N$6,0)) ->  | M24: =IF(B24="","",VLOOKUP(B24,TARIFASABR2025!$B$9:$X$44,TARIFASABR2025!$P$6,0)) ->  | O24: =IF(B24="","",VLOOKUP(B24,TARIFASABR2025!$B$9:$X$44,TARIFASABR2025!$Q$6,0)) ->  | Q24: =IF(B24="","",VLOOKUP(B24,TARIFASABR2025!$B$9:$X$44,TARIFASABR2025!$R$6,0)) ->  | S24: =IF(B24="","",VLOOKUP(B24,TARIFASABR2025!$B$9:$X$44,TARIFASABR2025!$T$6,0)) ->  | U24: =IF(B24="","",VLOOKUP(B24,TARIFASABR2025!$B$9:$X$44,TARIFASABR2025!$W$6,0)) ->  | W24: =IF(B24="","",VLOOKUP(B24,TARIFASABR2025!$B$9:$X$44,TARIFASABR2025!$X$6,0)) ->  | Y24: 0 | AB24: 23 | AC24: BICENTENARIO
C25: =IF(B25="","",VLOOKUP(B25,TARIFASABR2025!$B$7:$C$44,TARIFASABR2025!$C$6,0)) ->  | E25: =IF(B25="","",VLOOKUP(B25,TARIFASABR2025!$B$9:$X$44,TARIFASABR2025!$D$6,0)) ->  | G25: =IF(B25="","",VLOOKUP(B25,TARIFASABR2025!$B$9:$X$44,TARIFASABR2025!$F$6,0)) ->  | I25: =IF(B25="","",VLOOKUP(B25,TARIFASABR2025!$B$9:$X$44,TARIFASABR2025!$J$6,0)) ->  | K25: =IF(B25="","",VLOOKUP(B25,TARIFASABR2025!$B$9:$X$44,TARIFASABR2025!$N$6,0)) ->  | M25: =IF(B25="","",VLOOKUP(B25,TARIFASABR2025!$B$9:$X$44,TARIFASABR2025!$P$6,0)) ->  | O25: =IF(B25="","",VLOOKUP(B25,TARIFASABR2025!$B$9:$X$44,TARIFASABR2025!$Q$6,0)) ->  | Q25: =IF(B25="","",VLOOKUP(B25,TARIFASABR2025!$B$9:$X$44,TARIFASABR2025!$R$6,0)) ->  | S25: =IF(B25="","",VLOOKUP(B25,TARIFASABR2025!$B$9:$X$44,TARIFASABR2025!$T$6,0)) ->  | U25: =IF(B25="","",VLOOKUP(B25,TARIFASABR2025!$B$9:$X$44,TARIFASABR2025!$W$6,0)) ->  | W25: =IF(B25="","",VLOOKUP(B25,TARIFASABR2025!$B$9:$X$44,TARIFASABR2025!$X$6,0)) ->  | Y25: 0 | AB25: 24 | AC25: T. LA LINEA TOLIMA
C26: =IF(B26="","",VLOOKUP(B26,TARIFASABR2025!$B$7:$C$44,TARIFASABR2025!$C$6,0)) ->  | E26: =IF(B26="","",VLOOKUP(B26,TARIFASABR2025!$B$9:$X$44,TARIFASABR2025!$D$6,0)) ->  | G26: =IF(B26="","",VLOOKUP(B26,TARIFASABR2025!$B$9:$X$44,TARIFASABR2025!$F$6,0)) ->  | I26: =IF(B26="","",VLOOKUP(B26,TARIFASABR2025!$B$9:$X$44,TARIFASABR2025!$J$6,0)) ->  | K26: =IF(B26="","",VLOOKUP(B26,TARIFASABR2025!$B$9:$X$44,TARIFASABR2025!$N$6,0)) ->  | M26: =IF(B26="","",VLOOKUP(B26,TARIFASABR2025!$B$9:$X$44,TARIFASABR2025!$P$6,0)) ->  | O26: =IF(B26="","",VLOOKUP(B26,TARIFASABR2025!$B$9:$X$44,TARIFASABR2025!$Q$6,0)) ->  | Q26: =IF(B26="","",VLOOKUP(B26,TARIFASABR2025!$B$9:$X$44,TARIFASABR2025!$R$6,0)) ->  | S26: =IF(B26="","",VLOOKUP(B26,TARIFASABR2025!$B$9:$X$44,TARIFASABR2025!$T$6,0)) ->  | U26: =IF(B26="","",VLOOKUP(B26,TARIFASABR2025!$B$9:$X$44,TARIFASABR2025!$W$6,0)) ->  | W26: =IF(B26="","",VLOOKUP(B26,TARIFASABR2025!$B$9:$X$44,TARIFASABR2025!$X$6,0)) ->  | Y26: 0 | AB26: 25 | AC26: T. LA LINEA QUINDIO
C27: =IF(B27="","",VLOOKUP(B27,TARIFASABR2025!$B$7:$C$44,TARIFASABR2025!$C$6,0)) ->  | E27: =IF(B27="","",VLOOKUP(B27,TARIFASABR2025!$B$9:$X$44,TARIFASABR2025!$D$6,0)) ->  | G27: =IF(B27="","",VLOOKUP(B27,TARIFASABR2025!$B$9:$X$44,TARIFASABR2025!$F$6,0)) ->  | I27: =IF(B27="","",VLOOKUP(B27,TARIFASABR2025!$B$9:$X$44,TARIFASABR2025!$J$6,0)) ->  | K27: =IF(B27="","",VLOOKUP(B27,TARIFASABR2025!$B$9:$X$44,TARIFASABR2025!$N$6,0)) ->  | M27: =IF(B27="","",VLOOKUP(B27,TARIFASABR2025!$B$9:$X$44,TARIFASABR2025!$P$6,0)) ->  | O27: =IF(B27="","",VLOOKUP(B27,TARIFASABR2025!$B$9:$X$44,TARIFASABR2025!$Q$6,0)) ->  | Q27: =IF(B27="","",VLOOKUP(B27,TARIFASABR2025!$B$9:$X$44,TARIFASABR2025!$R$6,0)) ->  | S27: =IF(B27="","",VLOOKUP(B27,TARIFASABR2025!$B$9:$X$44,TARIFASABR2025!$T$6,0)) ->  | U27: =IF(B27="","",VLOOKUP(B27,TARIFASABR2025!$B$9:$X$44,TARIFASABR2025!$W$6,0)) ->  | W27: =IF(B27="","",VLOOKUP(B27,TARIFASABR2025!$B$9:$X$44,TARIFASABR2025!$X$6,0)) ->  | Y27: 0 | AB27: 26 | AC27: CANO
C28: =IF(B28="","",VLOOKUP(B28,TARIFASABR2025!$B$7:$C$44,TARIFASABR2025!$C$6,0)) ->  | E28: =IF(B28="","",VLOOKUP(B28,TARIFASABR2025!$B$9:$X$44,TARIFASABR2025!$D$6,0)) ->  | G28: =IF(B28="","",VLOOKUP(B28,TARIFASABR2025!$B$9:$X$44,TARIFASABR2025!$F$6,0)) ->  | I28: =IF(B28="","",VLOOKUP(B28,TARIFASABR2025!$B$9:$X$44,TARIFASABR2025!$J$6,0)) ->  | K28: =IF(B28="","",VLOOKUP(B28,TARIFASABR2025!$B$9:$X$44,TARIFASABR2025!$N$6,0)) ->  | M28: =IF(B28="","",VLOOKUP(B28,TARIFASABR2025!$B$9:$X$44,TARIFASABR2025!$P$6,0)) ->  | O28: =IF(B28="","",VLOOKUP(B28,TARIFASABR2025!$B$9:$X$44,TARIFASABR2025!$Q$6,0)) ->  | Q28: =IF(B28="","",VLOOKUP(B28,TARIFASABR2025!$B$9:$X$44,TARIFASABR2025!$R$6,0)) ->  | S28: =IF(B28="","",VLOOKUP(B28,TARIFASABR2025!$B$9:$X$44,TARIFASABR2025!$T$6,0)) ->  | U28: =IF(B28="","",VLOOKUP(B28,TARIFASABR2025!$B$9:$X$44,TARIFASABR2025!$W$6,0)) ->  | W28: =IF(B28="","",VLOOKUP(B28,TARIFASABR2025!$B$9:$X$44,TARIFASABR2025!$X$6,0)) ->  | Y28: 0 | AB28: 27 | AC28: CARIMAGUA
C29: =IF(B29="","",VLOOKUP(B29,TARIFASABR2025!$B$7:$C$44,TARIFASABR2025!$C$6,0)) ->  | E29: =IF(B29="","",VLOOKUP(B29,TARIFASABR2025!$B$9:$X$44,TARIFASABR2025!$D$6,0)) ->  | G29: =IF(B29="","",VLOOKUP(B29,TARIFASABR2025!$B$9:$X$44,TARIFASABR2025!$F$6,0)) ->  | I29: =IF(B29="","",VLOOKUP(B29,TARIFASABR2025!$B$9:$X$44,TARIFASABR2025!$J$6,0)) ->  | K29: =IF(B29="","",VLOOKUP(B29,TARIFASABR2025!$B$9:$X$44,TARIFASABR2025!$N$6,0)) ->  | M29: =IF(B29="","",VLOOKUP(B29,TARIFASABR2025!$B$9:$X$44,TARIFASABR2025!$P$6,0)) ->  | O29: =IF(B29="","",VLOOKUP(B29,TARIFASABR2025!$B$9:$X$44,TARIFASABR2025!$Q$6,0)) ->  | Q29: =IF(B29="","",VLOOKUP(B29,TARIFASABR2025!$B$9:$X$44,TARIFASABR2025!$R$6,0)) ->  | S29: =IF(B29="","",VLOOKUP(B29,TARIFASABR2025!$B$9:$X$44,TARIFASABR2025!$T$6,0)) ->  | U29: =IF(B29="","",VLOOKUP(B29,TARIFASABR2025!$B$9:$X$44,TARIFASABR2025!$W$6,0)) ->  | W29: =IF(B29="","",VLOOKUP(B29,TARIFASABR2025!$B$9:$X$44,TARIFASABR2025!$X$6,0)) ->  | Y29: 0 | AB29: 28 | AC29: EL CRUCERO
C30: =IF(B30="","",VLOOKUP(B30,TARIFASABR2025!$B$7:$C$44,TARIFASABR2025!$C$6,0)) ->  | E30: =IF(B30="","",VLOOKUP(B30,TARIFASABR2025!$B$9:$X$44,TARIFASABR2025!$D$6,0)) ->  | G30: =IF(B30="","",VLOOKUP(B30,TARIFASABR2025!$B$9:$X$44,TARIFASABR2025!$F$6,0)) ->  | I30: =IF(B30="","",VLOOKUP(B30,TARIFASABR2025!$B$9:$X$44,TARIFASABR2025!$J$6,0)) ->  | K30: =IF(B30="","",VLOOKUP(B30,TARIFASABR2025!$B$9:$X$44,TARIFASABR2025!$N$6,0)) ->  | M30: =IF(B30="","",VLOOKUP(B30,TARIFASABR2025!$B$9:$X$44,TARIFASABR2025!$P$6,0)) ->  | O30: =IF(B30="","",VLOOKUP(B30,TARIFASABR2025!$B$9:$X$44,TARIFASABR2025!$Q$6,0)) ->  | Q30: =IF(B30="","",VLOOKUP(B30,TARIFASABR2025!$B$9:$X$44,TARIFASABR2025!$R$6,0)) ->  | S30: =IF(B30="","",VLOOKUP(B30,TARIFASABR2025!$B$9:$X$44,TARIFASABR2025!$T$6,0)) ->  | U30: =IF(B30="","",VLOOKUP(B30,TARIFASABR2025!$B$9:$X$44,TARIFASABR2025!$W$6,0)) ->  | W30: =IF(B30="","",VLOOKUP(B30,TARIFASABR2025!$B$9:$X$44,TARIFASABR2025!$X$6,0)) ->  | Y30: 0 | AB30: 29 | AC30: EL BORDO
C31: =IF(B31="","",VLOOKUP(B31,TARIFASABR2025!$B$7:$C$44,TARIFASABR2025!$C$6,0)) ->  | E31: =IF(B31="","",VLOOKUP(B31,TARIFASABR2025!$B$9:$X$44,TARIFASABR2025!$D$6,0)) ->  | G31: =IF(B31="","",VLOOKUP(B31,TARIFASABR2025!$B$9:$X$44,TARIFASABR2025!$F$6,0)) ->  | I31: =IF(B31="","",VLOOKUP(B31,TARIFASABR2025!$B$9:$X$44,TARIFASABR2025!$J$6,0)) ->  | K31: =IF(B31="","",VLOOKUP(B31,TARIFASABR2025!$B$9:$X$44,TARIFASABR2025!$N$6,0)) ->  | M31: =IF(B31="","",VLOOKUP(B31,TARIFASABR2025!$B$9:$X$44,TARIFASABR2025!$P$6,0)) ->  | O31: =IF(B31="","",VLOOKUP(B31,TARIFASABR2025!$B$9:$X$44,TARIFASABR2025!$Q$6,0)) ->  | Q31: =IF(B31="","",VLOOKUP(B31,TARIFASABR2025!$B$9:$X$44,TARIFASABR2025!$R$6,0)) ->  | S31: =IF(B31="","",VLOOKUP(B31,TARIFASABR2025!$B$9:$X$44,TARIFASABR2025!$T$6,0)) ->  | U31: =IF(B31="","",VLOOKUP(B31,TARIFASABR2025!$B$9:$X$44,TARIFASABR2025!$W$6,0)) ->  | W31: =IF(B31="","",VLOOKUP(B31,TARIFASABR2025!$B$9:$X$44,TARIFASABR2025!$X$6,0)) ->  | Y31: 0 | AB31: 30 | AC31: LOS LLANOS
C32: =IF(B32="","",VLOOKUP(B32,TARIFASABR2025!$B$7:$C$44,TARIFASABR2025!$C$6,0)) ->  | E32: =IF(B32="","",VLOOKUP(B32,TARIFASABR2025!$B$9:$X$44,TARIFASABR2025!$D$6,0)) ->  | G32: =IF(B32="","",VLOOKUP(B32,TARIFASABR2025!$B$9:$X$44,TARIFASABR2025!$F$6,0)) ->  | I32: =IF(B32="","",VLOOKUP(B32,TARIFASABR2025!$B$9:$X$44,TARIFASABR2025!$J$6,0)) ->  | K32: =IF(B32="","",VLOOKUP(B32,TARIFASABR2025!$B$9:$X$44,TARIFASABR2025!$N$6,0)) ->  | M32: =IF(B32="","",VLOOKUP(B32,TARIFASABR2025!$B$9:$X$44,TARIFASABR2025!$P$6,0)) ->  | O32: =IF(B32="","",VLOOKUP(B32,TARIFASABR2025!$B$9:$X$44,TARIFASABR2025!$Q$6,0)) ->  | Q32: =IF(B32="","",VLOOKUP(B32,TARIFASABR2025!$B$9:$X$44,TARIFASABR2025!$R$6,0)) ->  | S32: =IF(B32="","",VLOOKUP(B32,TARIFASABR2025!$B$9:$X$44,TARIFASABR2025!$T$6,0)) ->  | U32: =IF(B32="","",VLOOKUP(B32,TARIFASABR2025!$B$9:$X$44,TARIFASABR2025!$W$6,0)) ->  | W32: =IF(B32="","",VLOOKUP(B32,TARIFASABR2025!$B$9:$X$44,TARIFASABR2025!$X$6,0)) ->  | Y32: 0 | AB32: 31 | AC32: RIO BLANCO
C33: =IF(B33="","",VLOOKUP(B33,TARIFASABR2025!$B$7:$C$44,TARIFASABR2025!$C$6,0)) ->  | E33: =IF(B33="","",VLOOKUP(B33,TARIFASABR2025!$B$9:$X$44,TARIFASABR2025!$D$6,0)) ->  | G33: =IF(B33="","",VLOOKUP(B33,TARIFASABR2025!$B$9:$X$44,TARIFASABR2025!$F$6,0)) ->  | I33: =IF(B33="","",VLOOKUP(B33,TARIFASABR2025!$B$9:$X$44,TARIFASABR2025!$J$6,0)) ->  | K33: =IF(B33="","",VLOOKUP(B33,TARIFASABR2025!$B$9:$X$44,TARIFASABR2025!$N$6,0)) ->  | M33: =IF(B33="","",VLOOKUP(B33,TARIFASABR2025!$B$9:$X$44,TARIFASABR2025!$P$6,0)) ->  | O33: =IF(B33="","",VLOOKUP(B33,TARIFASABR2025!$B$9:$X$44,TARIFASABR2025!$Q$6,0)) ->  | Q33: =IF(B33="","",VLOOKUP(B33,TARIFASABR2025!$B$9:$X$44,TARIFASABR2025!$R$6,0)) ->  | S33: =IF(B33="","",VLOOKUP(B33,TARIFASABR2025!$B$9:$X$44,TARIFASABR2025!$T$6,0)) ->  | U33: =IF(B33="","",VLOOKUP(B33,TARIFASABR2025!$B$9:$X$44,TARIFASABR2025!$W$6,0)) ->  | W33: =IF(B33="","",VLOOKUP(B33,TARIFASABR2025!$B$9:$X$44,TARIFASABR2025!$X$6,0)) ->  | Y33: 0 | AB33: 32 | AC33: RIO FRIO
C34: =IF(B34="","",VLOOKUP(B34,TARIFASABR2025!$B$7:$C$44,TARIFASABR2025!$C$6,0)) ->  | E34: =IF(B34="","",VLOOKUP(B34,TARIFASABR2025!$B$9:$X$44,TARIFASABR2025!$D$6,0)) ->  | G34: =IF(B34="","",VLOOKUP(B34,TARIFASABR2025!$B$9:$X$44,TARIFASABR2025!$F$6,0)) ->  | I34: =IF(B34="","",VLOOKUP(B34,TARIFASABR2025!$B$9:$X$44,TARIFASABR2025!$J$6,0)) ->  | K34: =IF(B34="","",VLOOKUP(B34,TARIFASABR2025!$B$9:$X$44,TARIFASABR2025!$N$6,0)) ->  | M34: =IF(B34="","",VLOOKUP(B34,TARIFASABR2025!$B$9:$X$44,TARIFASABR2025!$P$6,0)) ->  | O34: =IF(B34="","",VLOOKUP(B34,TARIFASABR2025!$B$9:$X$44,TARIFASABR2025!$Q$6,0)) ->  | Q34: =IF(B34="","",VLOOKUP(B34,TARIFASABR2025!$B$9:$X$44,TARIFASABR2025!$R$6,0)) ->  | S34: =IF(B34="","",VLOOKUP(B34,TARIFASABR2025!$B$9:$X$44,TARIFASABR2025!$T$6,0)) ->  | U34: =IF(B34="","",VLOOKUP(B34,TARIFASABR2025!$B$9:$X$44,TARIFASABR2025!$W$6,0)) ->  | W34: =IF(B34="","",VLOOKUP(B34,TARIFASABR2025!$B$9:$X$44,TARIFASABR2025!$X$6,0)) ->  | Y34: 0 | AB34: 33 | AC34: SACHICA
C35: =IF(B35="","",VLOOKUP(B35,TARIFASABR2025!$B$7:$C$44,TARIFASABR2025!$C$6,0)) ->  | E35: =IF(B35="","",VLOOKUP(B35,TARIFASABR2025!$B$9:$X$44,TARIFASABR2025!$D$6,0)) ->  | G35: =IF(B35="","",VLOOKUP(B35,TARIFASABR2025!$B$9:$X$44,TARIFASABR2025!$F$6,0)) ->  | I35: =IF(B35="","",VLOOKUP(B35,TARIFASABR2025!$B$9:$X$44,TARIFASABR2025!$J$6,0)) ->  | K35: =IF(B35="","",VLOOKUP(B35,TARIFASABR2025!$B$9:$X$44,TARIFASABR2025!$N$6,0)) ->  | M35: =IF(B35="","",VLOOKUP(B35,TARIFASABR2025!$B$9:$X$44,TARIFASABR2025!$P$6,0)) ->  | O35: =IF(B35="","",VLOOKUP(B35,TARIFASABR2025!$B$9:$X$44,TARIFASABR2025!$Q$6,0)) ->  | Q35: =IF(B35="","",VLOOKUP(B35,TARIFASABR2025!$B$9:$X$44,TARIFASABR2025!$R$6,0)) ->  | S35: =IF(B35="","",VLOOKUP(B35,TARIFASABR2025!$B$9:$X$44,TARIFASABR2025!$T$6,0)) ->  | U35: =IF(B35="","",VLOOKUP(B35,TARIFASABR2025!$B$9:$X$44,TARIFASABR2025!$W$6,0)) ->  | W35: =IF(B35="","",VLOOKUP(B35,TARIFASABR2025!$B$9:$X$44,TARIFASABR2025!$X$6,0)) ->  | Y35: 0 | AB35: 34 | AC35: SAN CLEMENTE
C36: =IF(B36="","",VLOOKUP(B36,TARIFASABR2025!$B$7:$C$44,TARIFASABR2025!$C$6,0)) ->  | E36: =IF(B36="","",VLOOKUP(B36,TARIFASABR2025!$B$9:$X$44,TARIFASABR2025!$D$6,0)) ->  | G36: =IF(B36="","",VLOOKUP(B36,TARIFASABR2025!$B$9:$X$44,TARIFASABR2025!$F$6,0)) ->  | I36: =IF(B36="","",VLOOKUP(B36,TARIFASABR2025!$B$9:$X$44,TARIFASABR2025!$J$6,0)) ->  | K36: =IF(B36="","",VLOOKUP(B36,TARIFASABR2025!$B$9:$X$44,TARIFASABR2025!$N$6,0)) ->  | M36: =IF(B36="","",VLOOKUP(B36,TARIFASABR2025!$B$9:$X$44,TARIFASABR2025!$P$6,0)) ->  | O36: =IF(B36="","",VLOOKUP(B36,TARIFASABR2025!$B$9:$X$44,TARIFASABR2025!$Q$6,0)) ->  | Q36: =IF(B36="","",VLOOKUP(B36,TARIFASABR2025!$B$9:$X$44,TARIFASABR2025!$R$6,0)) ->  | S36: =IF(B36="","",VLOOKUP(B36,TARIFASABR2025!$B$9:$X$44,TARIFASABR2025!$T$6,0)) ->  | U36: =IF(B36="","",VLOOKUP(B36,TARIFASABR2025!$B$9:$X$44,TARIFASABR2025!$W$6,0)) ->  | W36: =IF(B36="","",VLOOKUP(B36,TARIFASABR2025!$B$9:$X$44,TARIFASABR2025!$X$6,0)) ->  | Y36: 0 | AB36: 35 | AC36: TORO
C37: =IF(B37="","",VLOOKUP(B37,TARIFASABR2025!$B$7:$C$44,TARIFASABR2025!$C$6,0)) ->  | E37: =IF(B37="","",VLOOKUP(B37,TARIFASABR2025!$B$9:$X$44,TARIFASABR2025!$D$6,0)) ->  | G37: =IF(B37="","",VLOOKUP(B37,TARIFASABR2025!$B$9:$X$44,TARIFASABR2025!$F$6,0)) ->  | I37: =IF(B37="","",VLOOKUP(B37,TARIFASABR2025!$B$9:$X$44,TARIFASABR2025!$J$6,0)) ->  | K37: =IF(B37="","",VLOOKUP(B37,TARIFASABR2025!$B$9:$X$44,TARIFASABR2025!$N$6,0)) ->  | M37: =IF(B37="","",VLOOKUP(B37,TARIFASABR2025!$B$9:$X$44,TARIFASABR2025!$P$6,0)) ->  | O37: =IF(B37="","",VLOOKUP(B37,TARIFASABR2025!$B$9:$X$44,TARIFASABR2025!$Q$6,0)) ->  | Q37: =IF(B37="","",VLOOKUP(B37,TARIFASABR2025!$B$9:$X$44,TARIFASABR2025!$R$6,0)) ->  | S37: =IF(B37="","",VLOOKUP(B37,TARIFASABR2025!$B$9:$X$44,TARIFASABR2025!$T$6,0)) ->  | U37: =IF(B37="","",VLOOKUP(B37,TARIFASABR2025!$B$9:$X$44,TARIFASABR2025!$W$6,0)) ->  | W37: =IF(B37="","",VLOOKUP(B37,TARIFASABR2025!$B$9:$X$44,TARIFASABR2025!$X$6,0)) ->  | Y37: 0 | AB37: 36 | AC37: TARAZA
C38: =IF(B38="","",VLOOKUP(B38,TARIFASABR2025!$B$7:$C$44,TARIFASABR2025!$C$6,0)) ->  | E38: =IF(B38="","",VLOOKUP(B38,TARIFASABR2025!$B$9:$X$44,TARIFASABR2025!$D$6,0)) ->  | G38: =IF(B38="","",VLOOKUP(B38,TARIFASABR2025!$B$9:$X$44,TARIFASABR2025!$F$6,0)) ->  | I38: =IF(B38="","",VLOOKUP(B38,TARIFASABR2025!$B$9:$X$44,TARIFASABR2025!$J$6,0)) ->  | K38: =IF(B38="","",VLOOKUP(B38,TARIFASABR2025!$B$9:$X$44,TARIFASABR2025!$N$6,0)) ->  | M38: =IF(B38="","",VLOOKUP(B38,TARIFASABR2025!$B$9:$X$44,TARIFASABR2025!$P$6,0)) ->  | O38: =IF(B38="","",VLOOKUP(B38,TARIFASABR2025!$B$9:$X$44,TARIFASABR2025!$Q$6,0)) ->  | Q38: =IF(B38="","",VLOOKUP(B38,TARIFASABR2025!$B$9:$X$44,TARIFASABR2025!$R$6,0)) ->  | S38: =IF(B38="","",VLOOKUP(B38,TARIFASABR2025!$B$9:$X$44,TARIFASABR2025!$T$6,0)) ->  | U38: =IF(B38="","",VLOOKUP(B38,TARIFASABR2025!$B$9:$X$44,TARIFASABR2025!$W$6,0)) ->  | W38: =IF(B38="","",VLOOKUP(B38,TARIFASABR2025!$B$9:$X$44,TARIFASABR2025!$X$6,0)) ->  | Y38: 0 | AB38: 37 | AC38: CASABLANCA
C39: =IF(B39="","",VLOOKUP(B39,TARIFASABR2025!$B$7:$C$44,TARIFASABR2025!$C$6,0)) ->  | E39: =IF(B39="","",VLOOKUP(B39,TARIFASABR2025!$B$9:$X$44,TARIFASABR2025!$D$6,0)) ->  | G39: =IF(B39="","",VLOOKUP(B39,TARIFASABR2025!$B$9:$X$44,TARIFASABR2025!$F$6,0)) ->  | I39: =IF(B39="","",VLOOKUP(B39,TARIFASABR2025!$B$9:$X$44,TARIFASABR2025!$J$6,0)) ->  | K39: =IF(B39="","",VLOOKUP(B39,TARIFASABR2025!$B$9:$X$44,TARIFASABR2025!$N$6,0)) ->  | M39: =IF(B39="","",VLOOKUP(B39,TARIFASABR2025!$B$9:$X$44,TARIFASABR2025!$P$6,0)) ->  | O39: =IF(B39="","",VLOOKUP(B39,TARIFASABR2025!$B$9:$X$44,TARIFASABR2025!$Q$6,0)) ->  | Q39: =IF(B39="","",VLOOKUP(B39,TARIFASABR2025!$B$9:$X$44,TARIFASABR2025!$R$6,0)) ->  | S39: =IF(B39="","",VLOOKUP(B39,TARIFASABR2025!$B$9:$X$44,TARIFASABR2025!$T$6,0)) ->  | U39: =IF(B39="","",VLOOKUP(B39,TARIFASABR2025!$B$9:$X$44,TARIFASABR2025!$W$6,0)) ->  | W39: =IF(B39="","",VLOOKUP(B39,TARIFASABR2025!$B$9:$X$44,TARIFASABR2025!$X$6,0)) ->  | Y39: 0 | AB39: 38 | AC39: SABOYÁ
A40: =IF(A39<1,"",IF(B40="","",A39+1)) ->  | C40: =IF(B40="","",VLOOKUP(B40,TARIFASABR2025!$B$7:$C$44,TARIFASABR2025!$C$6,0)) ->  | E40: =IF(B40="","",VLOOKUP(B40,TARIFASABR2025!$B$9:$X$44,TARIFASABR2025!$D$6,0)) ->  | G40: =IF(B40="","",VLOOKUP(B40,TARIFASABR2025!$B$9:$X$44,TARIFASABR2025!$F$6,0)) ->  | I40: =IF(B40="","",VLOOKUP(B40,TARIFASABR2025!$B$9:$X$44,TARIFASABR2025!$J$6,0)) ->  | K40: =IF(B40="","",VLOOKUP(B40,TARIFASABR2025!$B$9:$X$44,TARIFASABR2025!$N$6,0)) ->  | M40: =IF(B40="","",VLOOKUP(B40,TARIFASABR2025!$B$9:$X$44,TARIFASABR2025!$P$6,0)) ->  | O40: =IF(B40="","",VLOOKUP(B40,TARIFASABR2025!$B$9:$X$44,TARIFASABR2025!$Q$6,0)) ->  | Q40: =IF(B40="","",VLOOKUP(B40,TARIFASABR2025!$B$9:$X$44,TARIFASABR2025!$R$6,0)) ->  | S40: =IF(B40="","",VLOOKUP(B40,TARIFASABR2025!$B$9:$X$44,TARIFASABR2025!$T$6,0)) ->  | U40: =IF(B40="","",VLOOKUP(B40,TARIFASABR2025!$B$9:$X$44,TARIFASABR2025!$W$6,0)) ->  | W40: =IF(B40="","",VLOOKUP(B40,TARIFASABR2025!$B$9:$X$44,TARIFASABR2025!$X$6,0)) ->  | Y40: 0 | AB40: 39 | AC40: OIBA
C41: =IF(B41="","",VLOOKUP(B41,TARIFASABR2025!$B$7:$C$44,TARIFASABR2025!$C$6,0)) ->  | E41: =IF(B41="","",VLOOKUP(B41,TARIFASABR2025!$B$9:$X$44,TARIFASABR2025!$D$6,0)) ->  | G41: =IF(B41="","",VLOOKUP(B41,TARIFASABR2025!$B$9:$X$44,TARIFASABR2025!$F$6,0)) ->  | I41: =IF(B41="","",VLOOKUP(B41,TARIFASABR2025!$B$9:$X$44,TARIFASABR2025!$J$6,0)) ->  | K41: =IF(B41="","",VLOOKUP(B41,TARIFASABR2025!$B$9:$X$44,TARIFASABR2025!$N$6,0)) ->  | M41: =IF(B41="","",VLOOKUP(B41,TARIFASABR2025!$B$9:$X$44,TARIFASABR2025!$P$6,0)) ->  | O41: =IF(B41="","",VLOOKUP(B41,TARIFASABR2025!$B$9:$X$44,TARIFASABR2025!$Q$6,0)) ->  | Q41: =IF(B41="","",VLOOKUP(B41,TARIFASABR2025!$B$9:$X$44,TARIFASABR2025!$R$6,0)) ->  | S41: =IF(B41="","",VLOOKUP(B41,TARIFASABR2025!$B$9:$X$44,TARIFASABR2025!$T$6,0)) ->  | U41: =IF(B41="","",VLOOKUP(B41,TARIFASABR2025!$B$9:$X$44,TARIFASABR2025!$W$6,0)) ->  | W41: =IF(B41="","",VLOOKUP(B41,TARIFASABR2025!$B$9:$X$44,TARIFASABR2025!$X$6,0)) ->  | Y41: 0 | AB41: 40 | AC41: CURITI
C42: =IF(B42="","",VLOOKUP(B42,TARIFASABR2025!$B$7:$C$44,TARIFASABR2025!$C$6,0)) ->  | E42: =IF(B42="","",VLOOKUP(B42,TARIFASABR2025!$B$9:$X$44,TARIFASABR2025!$D$6,0)) ->  | G42: =IF(B42="","",VLOOKUP(B42,TARIFASABR2025!$B$9:$X$44,TARIFASABR2025!$F$6,0)) ->  | I42: =IF(B42="","",VLOOKUP(B42,TARIFASABR2025!$B$9:$X$44,TARIFASABR2025!$J$6,0)) ->  | K42: =IF(B42="","",VLOOKUP(B42,TARIFASABR2025!$B$9:$X$44,TARIFASABR2025!$N$6,0)) ->  | M42: =IF(B42="","",VLOOKUP(B42,TARIFASABR2025!$B$9:$X$44,TARIFASABR2025!$P$6,0)) ->  | O42: =IF(B42="","",VLOOKUP(B42,TARIFASABR2025!$B$9:$X$44,TARIFASABR2025!$Q$6,0)) ->  | Q42: =IF(B42="","",VLOOKUP(B42,TARIFASABR2025!$B$9:$X$44,TARIFASABR2025!$R$6,0)) ->  | S42: =IF(B42="","",VLOOKUP(B42,TARIFASABR2025!$B$9:$X$44,TARIFASABR2025!$T$6,0)) ->  | U42: =IF(B42="","",VLOOKUP(B42,TARIFASABR2025!$B$9:$X$44,TARIFASABR2025!$W$6,0)) ->  | W42: =IF(B42="","",VLOOKUP(B42,TARIFASABR2025!$B$9:$X$44,TARIFASABR2025!$X$6,0)) ->  | Y42: 0 | AB42: 41 | AC42: LOS CUROS
C43: =IF(B43="","",VLOOKUP(B43,TARIFASABR2025!$B$7:$C$44,TARIFASABR2025!$C$6,0)) ->  | E43: =IF(B43="","",VLOOKUP(B43,TARIFASABR2025!$B$9:$X$44,TARIFASABR2025!$D$6,0)) ->  | G43: =IF(B43="","",VLOOKUP(B43,TARIFASABR2025!$B$9:$X$44,TARIFASABR2025!$F$6,0)) ->  | I43: =IF(B43="","",VLOOKUP(B43,TARIFASABR2025!$B$9:$X$44,TARIFASABR2025!$J$6,0)) ->  | K43: =IF(B43="","",VLOOKUP(B43,TARIFASABR2025!$B$9:$X$44,TARIFASABR2025!$N$6,0)) ->  | M43: =IF(B43="","",VLOOKUP(B43,TARIFASABR2025!$B$9:$X$44,TARIFASABR2025!$P$6,0)) ->  | O43: =IF(B43="","",VLOOKUP(B43,TARIFASABR2025!$B$9:$X$44,TARIFASABR2025!$Q$6,0)) ->  | Q43: =IF(B43="","",VLOOKUP(B43,TARIFASABR2025!$B$9:$X$44,TARIFASABR2025!$R$6,0)) ->  | S43: =IF(B43="","",VLOOKUP(B43,TARIFASABR2025!$B$9:$X$44,TARIFASABR2025!$T$6,0)) ->  | U43: =IF(B43="","",VLOOKUP(B43,TARIFASABR2025!$B$9:$X$44,TARIFASABR2025!$W$6,0)) ->  | W43: =IF(B43="","",VLOOKUP(B43,TARIFASABR2025!$B$9:$X$44,TARIFASABR2025!$X$6,0)) ->  | Y43: 0 | AB43: 42 | AC43: PLATANAL
C44: =IF(B44="","",VLOOKUP(B44,TARIFASABR2025!$B$7:$C$44,TARIFASABR2025!$C$6,0)) ->  | E44: =IF(B44="","",VLOOKUP(B44,TARIFASABR2025!$B$9:$X$44,TARIFASABR2025!$D$6,0)) ->  | G44: =IF(B44="","",VLOOKUP(B44,TARIFASABR2025!$B$9:$X$44,TARIFASABR2025!$F$6,0)) ->  | I44: =IF(B44="","",VLOOKUP(B44,TARIFASABR2025!$B$9:$X$44,TARIFASABR2025!$J$6,0)) ->  | K44: =IF(B44="","",VLOOKUP(B44,TARIFASABR2025!$B$9:$X$44,TARIFASABR2025!$N$6,0)) ->  | M44: =IF(B44="","",VLOOKUP(B44,TARIFASABR2025!$B$9:$X$44,TARIFASABR2025!$P$6,0)) ->  | O44: =IF(B44="","",VLOOKUP(B44,TARIFASABR2025!$B$9:$X$44,TARIFASABR2025!$Q$6,0)) ->  | Q44: =IF(B44="","",VLOOKUP(B44,TARIFASABR2025!$B$9:$X$44,TARIFASABR2025!$R$6,0)) ->  | S44: =IF(B44="","",VLOOKUP(B44,TARIFASABR2025!$B$9:$X$44,TARIFASABR2025!$T$6,0)) ->  | U44: =IF(B44="","",VLOOKUP(B44,TARIFASABR2025!$B$9:$X$44,TARIFASABR2025!$W$6,0)) ->  | W44: =IF(B44="","",VLOOKUP(B44,TARIFASABR2025!$B$9:$X$44,TARIFASABR2025!$X$6,0)) ->  | Y44: 0 | AB44: 43 | AC44: SAN DIEGO
C45: =IF(B45="","",VLOOKUP(B45,TARIFASABR2025!$B$7:$C$44,TARIFASABR2025!$C$6,0)) ->  | E45: =IF(B45="","",VLOOKUP(B45,TARIFASABR2025!$B$9:$X$44,TARIFASABR2025!$D$6,0)) ->  | G45: =IF(B45="","",VLOOKUP(B45,TARIFASABR2025!$B$9:$X$44,TARIFASABR2025!$F$6,0)) ->  | I45: =IF(B45="","",VLOOKUP(B45,TARIFASABR2025!$B$9:$X$44,TARIFASABR2025!$J$6,0)) ->  | K45: =IF(B45="","",VLOOKUP(B45,TARIFASABR2025!$B$9:$X$44,TARIFASABR2025!$N$6,0)) ->  | M45: =IF(B45="","",VLOOKUP(B45,TARIFASABR2025!$B$9:$X$44,TARIFASABR2025!$P$6,0)) ->  | O45: =IF(B45="","",VLOOKUP(B45,TARIFASABR2025!$B$9:$X$44,TARIFASABR2025!$Q$6,0)) ->  | Q45: =IF(B45="","",VLOOKUP(B45,TARIFASABR2025!$B$9:$X$44,TARIFASABR2025!$R$6,0)) ->  | S45: =IF(B45="","",VLOOKUP(B45,TARIFASABR2025!$B$9:$X$44,TARIFASABR2025!$T$6,0)) ->  | U45: =IF(B45="","",VLOOKUP(B45,TARIFASABR2025!$B$9:$X$44,TARIFASABR2025!$W$6,0)) ->  | W45: =IF(B45="","",VLOOKUP(B45,TARIFASABR2025!$B$9:$X$44,TARIFASABR2025!$X$6,0)) ->  | Y45: 0 | AB45: 44 | AC45: RINCÓN HONDO
C46: TOTAL | D46: =SUM(D16:D45) -> 0 | F46: =SUM(F16:F45) -> 0 | H46: =SUM(H16:H45) -> 0 | J46: =SUM(J16:J45) -> 0 | L46: =SUM(L16:L45) -> 0 | N46: =SUM(N16:N45) -> 0 | P46: =SUM(P16:P45) -> 0 | R46: =SUM(R16:R45) -> 0 | T46: =SUM(T16:T45) -> 0 | U46: =IF(B46="","",VLOOKUP(B46,TARIFASABR2025!$B$9:$X$44,TARIFASABR2025!$W$6,0)) ->  | V46: =SUM(V16:V45) -> 0 | X46: =SUM(X16:X45) -> 0 | Y46: =SUM(Y16:Y45) -> 0 | AB46: 45 | AC46: SAN JUAN
AB47: 46 | AC47: COCORNA
AB48: 47 | AC48: PUERTO TRIUNFO
AB49: 48 | AC49: CERRITOS II
AB50: 49 | AC50: LA PARADA
AB51: =+AB47+1 -> 47 | AC51: EL KORAN
AB52: 48 | AC52: RIO BOGOTA
AB53: 49 | AC53: CORZO
AB54: 50 | AC54: GARZON I
AB55: 51 | AC55: GARZON II
AB56: 52 | AC56: LA ESPERANZA
AB57: 53 | AC57: LAS FLORES
AB58: 54
AB59: 55
AB60: 56
AB61: 57
AB62: 58
AB63: 59
AB64: 60
AB65: 61
AB66: 62
AB67: 63
AB68: 64
AB69: 65
AB70: 66
AB71: =+AB70+1 -> 67
AB72: 68
AB73: 69
AB74: 70
AB75: 71
AB76: 72
AB77: 73
AB78: 74
AB79: 75
AB80: 76
AB81: 77
AB82: 78
AB83: 79
AB84: 80
AB85: 81
AB86: 82
AB87: 83
AB88: 84
AB89: 85
AB90: 86
AB91: 87
AB92: 88
AB93: 89
AB94: 90
AB95: 91
AB96: 92
AB97: 93
AB98: 94
AB99: 95
AB100: 96
AB101: 97
AB102: 98
AB103: 99
AB104: 100
AB105: 101
AB106: 102
AB107: 103
AB108: 104
AB109: 105
AB110: 106
AB111: 107
AB112: 108
AB113: 109
AB114: 110
AB115: 111
AB116: 112
AB117: 113
AB118: 114
AB119: 115
AB120: 116
AB121: 117
AB122: 118
AB123: 119
AB124: 120
AB125: 121
AB126: 122
AB127: 123
AB128: 124
AB129: 125
AB130: 126
AB131: 127
AB132: 128
AB133: 129
AB134: 130
AB135: =+AB134+1 -> 131
AB136: 132
AB137: 133
AB138: 134
AB139: 135
AB140: 136
AB141: 137
AB142: 138
AB143: 139
AB144: 140
AB145: 141
AB146: 142
AB147: 143
AB148: 144
AB149: 145
AB150: 146
AB151: 147
AB152: 148
AB153: 149
AB154: 150
AB155: 151
AB156: 152
AB157: 153
AB158: 154
AB159: 155
AB160: 156
AB161: 157
AB162: 158
AB163: 159
AB164: 160
AB165: 161
AB166: 162
AB167: 163
AB168: 164
AB169: 165
AB170: 166
AB171: 167
AB172: 168
AB173: 169
AB174: 170
AB175: 171
AB176: 172
AB177: 173
AB178: 174
AB179: 175
AB180: 176
AB181: 177
AB182: 178
AB183: 179
AB184: 180
AB185: 181
AB186: 182
AB187: 183
AB188: 184
AB189: 185
AB190: 186
AB191: 187
AB192: 188
AB193: 189
AB194: 190
AB195: 191
AB196: 192
AB197: 193
AB198: 194
AB199: =+AB198+1 -> 195
AB200: 196
AB201: 197
... 1803 more rows

Sheet LIQUIDACION
B2: F-GF-020 FORMATO LIQUIDACIÓN COMPRA
B3: TIQUETES PREPAGO
B4: VERSIÓN 005
B5: FECHA : 01/04/2025
B7: Fecha: | C7: =+IF(FORMULARIO!C7="","",FORMULARIO!C7) -> 
B9: Nombre del Cliente | C9: =+IF(FORMULARIO!C9="","",FORMULARIO!C9) -> 
B11: Documento de identidad | C11: =+IF(FORMULARIO!P9="","",FORMULARIO!P9) ->  | L11: No. | M11: =+IF(FORMULARIO!X9="","",FORMULARIO!X9) -> 
B13: Direccion de envio Tiquetes | C13: =+IF(FORMULARIO!D11="","",FORMULARIO!D11) -> 
B15: Ciudad | C15: =+IF(FORMULARIO!P11="","",FORMULARIO!P11) ->  | L15: Departamento | O15: =+IF(FORMULARIO!X11="","",FORMULARIO!X11) -> 
B16: Contacto | C16: =+IF(FORMULARIO!D12="","",FORMULARIO!D12) -> 
B17: N° Celular contacto | C17: =+IF(FORMULARIO!D13="","",FORMULARIO!D13) -> 
B18: E_MAIL | C18: =+IF(FORMULARIO!P13="","",FORMULARIO!P13) -> 
A20: No. | B20: PEAJE | C20: CATEGORÍAS VEHICULARES | O20: CANTIDAD | P20: VALOR
C21: I | D21: IE2 | E21: II | F21: III | G21: IIIP | H21: IIIG | I21: IV | J21: V | K21: VI | L21: VII | O21: TIQUETES
A22: =+FORMULARIO!A16 ->  | B22: =+IF(FORMULARIO!B16="","",FORMULARIO!B16) ->  | C22: =+IF(B22="","",IF(FORMULARIO!D16="","",IF(B22=$X$33,"",FORMULARIO!D16))) ->  | D22: =+IF(B22="","",IF(FORMULARIO!F16="","",FORMULARIO!F16)) ->  | E22: =+IF(B22="","",IF(FORMULARIO!H16="","",FORMULARIO!H16)) ->  | F22: =+IF(B22="","",IF(FORMULARIO!J16="","",FORMULARIO!J16)) ->  | G22: =+IF(B22="","",IF(FORMULARIO!L16="","",FORMULARIO!L16)) ->  | H22: =+IF(B22="","",IF(FORMULARIO!N16="","",FORMULARIO!N16)) ->  | I22: =+IF(B22="","",IF(FORMULARIO!P16="","",FORMULARIO!P16)) ->  | J22: =+IF(B22="","",IF(FORMULARIO!R16="","",FORMULARIO!R16)) ->  | K22: =+IF(B22="","",IF(FORMULARIO!T16="","",IF(B22=$X$22,"",IF(B22=$X$23,"",IF(B22=$X$24,"",IF(B22=$X$25,"",IF(B22=$X$26,"",IF(B22=$X$27,"",IF(B22=$X$28,"",IF(B22=$X$29,"",IF(B22=$X$30,"",IF(B22=$X$31,"",IF(B22=$X$32,"",IF(B22=$X$33,"",IF(B22=$X$34,"",FORMULARIO!T16))))))))))))))) ->  | L22: =+IF(B22="","",IF(FORMULARIO!V16="","",IF(B22=$X$22,"",IF(B22=$X$23,"",IF(B22=$X$24,"",IF(B22=$X$25,"",IF(B22=$X$26,"",IF(B22=$X$27,"",IF(B22=$X$28,"",IF(B22=$X$29,"",IF(B22=$X$30,"",IF(B22=$X$31,"",IF(B22=$X$32,"",IF(B22=$X$33,"",IF(B22=$X$34,"",FORMULARIO!V16))))))))))))))) ->  | O22: =SUM(C22:L22) -> 0 | P22: =FORMULARIO!Y16 -> 0 | X22: CASABLANCA
A23: =+FORMULARIO!A17 ->  | B23: =+IF(FORMULARIO!B17="","",FORMULARIO!B17) ->  | C23: =+IF(B23="","",IF(FORMULARIO!D17="","",IF(B23=$X$33,"",FORMULARIO!D17))) ->  | D23: =+IF(B23="","",IF(FORMULARIO!F17="","",FORMULARIO!F17)) ->  | E23: =+IF(B23="","",IF(FORMULARIO!H17="","",FORMULARIO!H17)) ->  | F23: =+IF(B23="","",IF(FORMULARIO!J17="","",FORMULARIO!J17)) ->  | G23: =+IF(B23="","",IF(FORMULARIO!L17="","",FORMULARIO!L17)) ->  | H23: =+IF(B23="","",IF(FORMULARIO!N17="","",FORMULARIO!N17)) ->  | I23: =+IF(B23="","",IF(FORMULARIO!P17="","",FORMULARIO!P17)) ->  | J23: =+IF(B23="","",IF(FORMULARIO!R17="","",FORMULARIO!R17)) ->  | K23: =+IF(B23="","",IF(FORMULARIO!T17="","",IF(B23=$X$22,"",IF(B23=$X$23,"",IF(B23=$X$24,"",IF(B23=$X$25,"",IF(B23=$X$26,"",IF(B23=$X$27,"",IF(B23=$X$28,"",IF(B23=$X$29,"",IF(B23=$X$30,"",IF(B23=$X$31,"",IF(B23=$X$32,"",IF(B23=$X$33,"",IF(B23=$X$34,"",FORMULARIO!T17))))))))))))))) ->  | L23: =+IF(B23="","",IF(FORMULARIO!V17="","",IF(B23=$X$22,"",IF(B23=$X$23,"",IF(B23=$X$24,"",IF(B23=$X$25,"",IF(B23=$X$26,"",IF(B23=$X$27,"",IF(B23=$X$28,"",IF(B23=$X$29,"",IF(B23=$X$30,"",IF(B23=$X$31,"",IF(B23=$X$32,"",IF(B23=$X$33,"",IF(B23=$X$34,"",FORMULARIO!V17))))))))))))))) ->  | O23: =SUM(C23:L23) -> 0 | P23: =FORMULARIO!Y17 -> 0 | X23: SABOYÁ
A24: =+FORMULARIO!A18 ->  | B24: =+IF(FORMULARIO!B18="","",FORMULARIO!B18) ->  | C24: =+IF(B24="","",IF(FORMULARIO!D18="","",IF(B24=$X$33,"",FORMULARIO!D18))) ->  | D24: =+IF(B24="","",IF(FORMULARIO!F18="","",FORMULARIO!F18)) ->  | E24: =+IF(B24="","",IF(FORMULARIO!H18="","",FORMULARIO!H18)) ->  | F24: =+IF(B24="","",IF(FORMULARIO!J18="","",FORMULARIO!J18)) ->  | G24: =+IF(B24="","",IF(FORMULARIO!L18="","",FORMULARIO!L18)) ->  | H24: =+IF(B24="","",IF(FORMULARIO!N18="","",FORMULARIO!N18)) ->  | I24: =+IF(B24="","",IF(FORMULARIO!P18="","",FORMULARIO!P18)) ->  | J24: =+IF(B24="","",IF(FORMULARIO!R18="","",FORMULARIO!R18)) ->  | K24: =+IF(B24="","",IF(FORMULARIO!T18="","",IF(B24=$X$22,"",IF(B24=$X$23,"",IF(B24=$X$24,"",IF(B24=$X$25,"",IF(B24=$X$26,"",IF(B24=$X$27,"",IF(B24=$X$28,"",IF(B24=$X$29,"",IF(B24=$X$30,"",IF(B24=$X$31,"",IF(B24=$X$32,"",IF(B24=$X$33,"",IF(B24=$X$34,"",FORMULARIO!T18))))))))))))))) ->  | L24: =+IF(B24="","",IF(FORMULARIO!V18="","",IF(B24=$X$22,"",IF(B24=$X$23,"",IF(B24=$X$24,"",IF(B24=$X$25,"",IF(B24=$X$26,"",IF(B24=$X$27,"",IF(B24=$X$28,"",IF(B24=$X$29,"",IF(B24=$X$30,"",IF(B24=$X$31,"",IF(B24=$X$32,"",IF(B24=$X$33,"",IF(B24=$X$34,"",FORMULARIO!V18))))))))))))))) ->  | O24: 0 | P24: =FORMULARIO!Y18 -> 0 | X24: OIBA
A25: =+FORMULARIO!A19 ->  | B25: =+IF(FORMULARIO!B19="","",FORMULARIO!B19) ->  | C25: =+IF(B25="","",IF(FORMULARIO!D19="","",IF(B25=$X$33,"",FORMULARIO!D19))) ->  | D25: =+IF(B25="","",IF(FORMULARIO!F19="","",FORMULARIO!F19)) ->  | E25: =+IF(B25="","",IF(FORMULARIO!H19="","",FORMULARIO!H19)) ->  | F25: =+IF(B25="","",IF(FORMULARIO!J19="","",FORMULARIO!J19)) ->  | G25: =+IF(B25="","",IF(FORMULARIO!L19="","",FORMULARIO!L19)) ->  | H25: =+IF(B25="","",IF(FORMULARIO!N19="","",FORMULARIO!N19)) ->  | I25: =+IF(B25="","",IF(FORMULARIO!P19="","",FORMULARIO!P19)) ->  | J25: =+IF(B25="","",IF(FORMULARIO!R19="","",FORMULARIO!R19)) ->  | K25: =+IF(B25="","",IF(FORMULARIO!T19="","",IF(B25=$X$22,"",IF(B25=$X$23,"",IF(B25=$X$24,"",IF(B25=$X$25,"",IF(B25=$X$26,"",IF(B25=$X$27,"",IF(B25=$X$28,"",IF(B25=$X$29,"",IF(B25=$X$30,"",IF(B25=$X$31,"",IF(B25=$X$32,"",IF(B25=$X$33,"",IF(B25=$X$34,"",FORMULARIO!T19))))))))))))))) ->  | L25: =+IF(B25="","",IF(FORMULARIO!V19="","",IF(B25=$X$22,"",IF(B25=$X$23,"",IF(B25=$X$24,"",IF(B25=$X$25,"",IF(B25=$X$26,"",IF(B25=$X$27,"",IF(B25=$X$28,"",IF(B25=$X$29,"",IF(B25=$X$30,"",IF(B25=$X$31,"",IF(B25=$X$32,"",IF(B25=$X$33,"",IF(B25=$X$34,"",FORMULARIO!V19))))))))))))))) ->  | O25: 0 | P25: =FORMULARIO!Y19 -> 0 | X25: CURITI
A26: =+FORMULARIO!A20 ->  | B26: =+IF(FORMULARIO!B20="","",FORMULARIO!B20) ->  | C26: =+IF(B26="","",IF(FORMULARIO!D20="","",IF(B26=$X$33,"",FORMULARIO!D20))) ->  | D26: =+IF(B26="","",IF(FORMULARIO!F20="","",FORMULARIO!F20)) ->  | E26: =+IF(B26="","",IF(FORMULARIO!H20="","",FORMULARIO!H20)) ->  | F26: =+IF(B26="","",IF(FORMULARIO!J20="","",FORMULARIO!J20)) ->  | G26: =+IF(B26="","",IF(FORMULARIO!L20="","",FORMULARIO!L20)) ->  | H26: =+IF(B26="","",IF(FORMULARIO!N20="","",FORMULARIO!N20)) ->  | I26: =+IF(B26="","",IF(FORMULARIO!P20="","",FORMULARIO!P20)) ->  | J26: =+IF(B26="","",IF(FORMULARIO!R20="","",FORMULARIO!R20)) ->  | K26: =+IF(B26="","",IF(FORMULARIO!T20="","",IF(B26=$X$22,"",IF(B26=$X$23,"",IF(B26=$X$24,"",IF(B26=$X$25,"",IF(B26=$X$26,"",IF(B26=$X$27,"",IF(B26=$X$28,"",IF(B26=$X$29,"",IF(B26=$X$30,"",IF(B26=$X$31,"",IF(B26=$X$32,"",IF(B26=$X$33,"",IF(B26=$X$34,"",FORMULARIO!T20))))))))))))))) ->  | L26: =+IF(B26="","",IF(FORMULARIO!V20="","",IF(B26=$X$22,"",IF(B26=$X$23,"",IF(B26=$X$24,"",IF(B26=$X$25,"",IF(B26=$X$26,"",IF(B26=$X$27,"",IF(B26=$X$28,"",IF(B26=$X$29,"",IF(B26=$X$30,"",IF(B26=$X$31,"",IF(B26=$X$32,"",IF(B26=$X$33,"",IF(B26=$X$34,"",FORMULARIO!V20))))))))))))))) ->  | O26: 0 | P26: =FORMULARIO!Y20 -> 0 | X26: LOS CUROS
A27: =+FORMULARIO!A21 ->  | B27: =+IF(FORMULARIO!B21="","",FORMULARIO!B21) ->  | C27: =+IF(B27="","",IF(FORMULARIO!D21="","",IF(B27=$X$33,"",FORMULARIO!D21))) ->  | D27: =+IF(B27="","",IF(FORMULARIO!F21="","",FORMULARIO!F21)) ->  | E27: =+IF(B27="","",IF(FORMULARIO!H21="","",FORMULARIO!H21)) ->  | F27: =+IF(B27="","",IF(FORMULARIO!J21="","",FORMULARIO!J21)) ->  | G27: =+IF(B27="","",IF(FORMULARIO!L21="","",FORMULARIO!L21)) ->  | H27: =+IF(B27="","",IF(FORMULARIO!N21="","",FORMULARIO!N21)) ->  | I27: =+IF(B27="","",IF(FORMULARIO!P21="","",FORMULARIO!P21)) ->  | J27: =+IF(B27="","",IF(FORMULARIO!R21="","",FORMULARIO!R21)) ->  | K27: =+IF(B27="","",IF(FORMULARIO!T21="","",IF(B27=$X$22,"",IF(B27=$X$23,"",IF(B27=$X$24,"",IF(B27=$X$25,"",IF(B27=$X$26,"",IF(B27=$X$27,"",IF(B27=$X$28,"",IF(B27=$X$29,"",IF(B27=$X$30,"",IF(B27=$X$31,"",IF(B27=$X$32,"",IF(B27=$X$33,"",IF(B27=$X$34,"",FORMULARIO!T21))))))))))))))) ->  | L27: =+IF(B27="","",IF(FORMULARIO!V21="","",IF(B27=$X$22,"",IF(B27=$X$23,"",IF(B27=$X$24,"",IF(B27=$X$25,"",IF(B27=$X$26,"",IF(B27=$X$27,"",IF(B27=$X$28,"",IF(B27=$X$29,"",IF(B27=$X$30,"",IF(B27=$X$31,"",IF(B27=$X$32,"",IF(B27=$X$33,"",IF(B27=$X$34,"",FORMULARIO!V21))))))))))))))) ->  | O27: 0 | P27: =FORMULARIO!Y21 -> 0 | X27: AGUAS NEGRAS
A28: =+FORMULARIO!A22 ->  | B28: =+IF(FORMULARIO!B22="","",FORMULARIO!B22) ->  | C28: =+IF(B28="","",IF(FORMULARIO!D22="","",IF(B28=$X$33,"",FORMULARIO!D22))) ->  | D28: =+IF(B28="","",IF(FORMULARIO!F22="","",FORMULARIO!F22)) ->  | E28: =+IF(B28="","",IF(FORMULARIO!H22="","",FORMULARIO!H22)) ->  | F28: =+IF(B28="","",IF(FORMULARIO!J22="","",FORMULARIO!J22)) ->  | G28: =+IF(B28="","",IF(FORMULARIO!L22="","",FORMULARIO!L22)) ->  | H28: =+IF(B28="","",IF(FORMULARIO!N22="","",FORMULARIO!N22)) ->  | I28: =+IF(B28="","",IF(FORMULARIO!P22="","",FORMULARIO!P22)) ->  | J28: =+IF(B28="","",IF(FORMULARIO!R22="","",FORMULARIO!R22)) ->  | K28: =+IF(B28="","",IF(FORMULARIO!T22="","",IF(B28=$X$22,"",IF(B28=$X$23,"",IF(B28=$X$24,"",IF(B28=$X$25,"",IF(B28=$X$26,"",IF(B28=$X$27,"",IF(B28=$X$28,"",IF(B28=$X$29,"",IF(B28=$X$30,"",IF(B28=$X$31,"",IF(B28=$X$32,"",IF(B28=$X$33,"",IF(B28=$X$34,"",FORMULARIO!T22))))))))))))))) ->  | L28: =+IF(B28="","",IF(FORMULARIO!V22="","",IF(B28=$X$22,"",IF(B28=$X$23,"",IF(B28=$X$24,"",IF(B28=$X$25,"",IF(B28=$X$26,"",IF(B28=$X$27,"",IF(B28=$X$28,"",IF(B28=$X$29,"",IF(B28=$X$30,"",IF(B28=$X$31,"",IF(B28=$X$32,"",IF(B28=$X$33,"",IF(B28=$X$34,"",FORMULARIO!V22))))))))))))))) ->  | O28: 0 | P28: =FORMULARIO!Y22 -> 0 | X28: LA GOMEZ
A29: =+FORMULARIO!A23 ->  | B29: =+IF(FORMULARIO!B23="","",FORMULARIO!B23) ->  | C29: =+IF(B29="","",IF(FORMULARIO!D23="","",IF(B29=$X$33,"",FORMULARIO!D23))) ->  | D29: =+IF(B29="","",IF(FORMULARIO!F23="","",FORMULARIO!F23)) ->  | E29: =+IF(B29="","",IF(FORMULARIO!H23="","",FORMULARIO!H23)) ->  | F29: =+IF(B29="","",IF(FORMULARIO!J23="","",FORMULARIO!J23)) ->  | G29: =+IF(B29="","",IF(FORMULARIO!L23="","",FORMULARIO!L23)) ->  | H29: =+IF(B29="","",IF(FORMULARIO!N23="","",FORMULARIO!N23)) ->  | I29: =+IF(B29="","",IF(FORMULARIO!P23="","",FORMULARIO!P23)) ->  | J29: =+IF(B29="","",IF(FORMULARIO!R23="","",FORMULARIO!R23)) ->  | K29: =+IF(B29="","",IF(FORMULARIO!T23="","",IF(B29=$X$22,"",IF(B29=$X$23,"",IF(B29=$X$24,"",IF(B29=$X$25,"",IF(B29=$X$26,"",IF(B29=$X$27,"",IF(B29=$X$28,"",IF(B29=$X$29,"",IF(B29=$X$30,"",IF(B29=$X$31,"",IF(B29=$X$32,"",IF(B29=$X$33,"",IF(B29=$X$34,"",FORMULARIO!T23))))))))))))))) ->  | L29: =+IF(B29="","",IF(FORMULARIO!V23="","",IF(B29=$X$22,"",IF(B29=$X$23,"",IF(B29=$X$24,"",IF(B29=$X$25,"",IF(B29=$X$26,"",IF(B29=$X$27,"",IF(B29=$X$28,"",IF(B29=$X$29,"",IF(B29=$X$30,"",IF(B29=$X$31,"",IF(B29=$X$32,"",IF(B29=$X$33,"",IF(B29=$X$34,"",FORMULARIO!V23))))))))))))))) ->  | O29: 0 | P29: =FORMULARIO!Y23 -> 0 | X29: MORRISON
A30: =+FORMULARIO!A24 ->  | B30: =+IF(FORMULARIO!B24="","",FORMULARIO!B24) ->  | C30: =+IF(B30="","",IF(FORMULARIO!D24="","",IF(B30=$X$33,"",FORMULARIO!D24))) ->  | D30: =+IF(B30="","",IF(FORMULARIO!F24="","",FORMULARIO!F24)) ->  | E30: =+IF(B30="","",IF(FORMULARIO!H24="","",FORMULARIO!H24)) ->  | F30: =+IF(B30="","",IF(FORMULARIO!J24="","",FORMULARIO!J24)) ->  | G30: =+IF(B30="","",IF(FORMULARIO!L24="","",FORMULARIO!L24)) ->  | H30: =+IF(B30="","",IF(FORMULARIO!N24="","",FORMULARIO!N24)) ->  | I30: =+IF(B30="","",IF(FORMULARIO!P24="","",FORMULARIO!P24)) ->  | J30: =+IF(B30="","",IF(FORMULARIO!R24="","",FORMULARIO!R24)) ->  | K30: =+IF(B30="","",IF(FORMULARIO!T24="","",IF(B30=$X$22,"",IF(B30=$X$23,"",IF(B30=$X$24,"",IF(B30=$X$25,"",IF(B30=$X$26,"",IF(B30=$X$27,"",IF(B30=$X$28,"",IF(B30=$X$29,"",IF(B30=$X$30,"",IF(B30=$X$31,"",IF(B30=$X$32,"",IF(B30=$X$33,"",IF(B30=$X$34,"",FORMULARIO!T24))))))))))))))) ->  | L30: =+IF(B30="","",IF(FORMULARIO!V24="","",IF(B30=$X$22,"",IF(B30=$X$23,"",IF(B30=$X$24,"",IF(B30=$X$25,"",IF(B30=$X$26,"",IF(B30=$X$27,"",IF(B30=$X$28,"",IF(B30=$X$29,"",IF(B30=$X$30,"",IF(B30=$X$31,"",IF(B30=$X$32,"",IF(B30=$X$33,"",IF(B30=$X$34,"",FORMULARIO!V24))))))))))))))) ->  | O30: 0 | P30: =FORMULARIO!Y24 -> 0 | X30: PAILITAS
A31: =+FORMULARIO!A25 ->  | B31: =+IF(FORMULARIO!B25="","",FORMULARIO!B25) ->  | C31: =+IF(B31="","",IF(FORMULARIO!D25="","",IF(B31=$X$33,"",FORMULARIO!D25))) ->  | D31: =+IF(B31="","",IF(FORMULARIO!F25="","",FORMULARIO!F25)) ->  | E31: =+IF(B31="","",IF(FORMULARIO!H25="","",FORMULARIO!H25)) ->  | F31: =+IF(B31="","",IF(FORMULARIO!J25="","",FORMULARIO!J25)) ->  | G31: =+IF(B31="","",IF(FORMULARIO!L25="","",FORMULARIO!L25)) ->  | H31: =+IF(B31="","",IF(FORMULARIO!N25="","",FORMULARIO!N25)) ->  | I31: =+IF(B31="","",IF(FORMULARIO!P25="","",FORMULARIO!P25)) ->  | J31: =+IF(B31="","",IF(FORMULARIO!R25="","",FORMULARIO!R25)) ->  | K31: =+IF(B31="","",IF(FORMULARIO!T25="","",IF(B31=$X$22,"",IF(B31=$X$23,"",IF(B31=$X$24,"",IF(B31=$X$25,"",IF(B31=$X$26,"",IF(B31=$X$27,"",IF(B31=$X$28,"",IF(B31=$X$29,"",IF(B31=$X$30,"",IF(B31=$X$31,"",IF(B31=$X$32,"",IF(B31=$X$33,"",IF(B31=$X$34,"",FORMULARIO!T25))))))))))))))) ->  | L31: =+IF(B31="","",IF(FORMULARIO!V25="","",IF(B31=$X$22,"",IF(B31=$X$23,"",IF(B31=$X$24,"",IF(B31=$X$25,"",IF(B31=$X$26,"",IF(B31=$X$27,"",IF(B31=$X$28,"",IF(B31=$X$29,"",IF(B31=$X$30,"",IF(B31=$X$31,"",IF(B31=$X$32,"",IF(B31=$X$33,"",IF(B31=$X$34,"",FORMULARIO!V25))))))))))))))) ->  | O31: 0 | P31: =FORMULARIO!Y25 -> 0 | X31: PLATANAL
A32: =+FORMULARIO!A26 ->  | B32: =+IF(FORMULARIO!B26="","",FORMULARIO!B26) ->  | C32: =+IF(B32="","",IF(FORMULARIO!D26="","",IF(B32=$X$33,"",FORMULARIO!D26))) ->  | D32: =+IF(B32="","",IF(FORMULARIO!F26="","",FORMULARIO!F26)) ->  | E32: =+IF(B32="","",IF(FORMULARIO!H26="","",FORMULARIO!H26)) ->  | F32: =+IF(B32="","",IF(FORMULARIO!J26="","",FORMULARIO!J26)) ->  | G32: =+IF(B32="","",IF(FORMULARIO!L26="","",FORMULARIO!L26)) ->  | H32: =+IF(B32="","",IF(FORMULARIO!N26="","",FORMULARIO!N26)) ->  | I32: =+IF(B32="","",IF(FORMULARIO!P26="","",FORMULARIO!P26)) ->  | J32: =+IF(B32="","",IF(FORMULARIO!R26="","",FORMULARIO!R26)) ->  | K32: =+IF(B32="","",IF(FORMULARIO!T26="","",IF(B32=$X$22,"",IF(B32=$X$23,"",IF(B32=$X$24,"",IF(B32=$X$25,"",IF(B32=$X$26,"",IF(B32=$X$27,"",IF(B32=$X$28,"",IF(B32=$X$29,"",IF(B32=$X$30,"",IF(B32=$X$31,"",IF(B32=$X$32,"",IF(B32=$X$33,"",IF(B32=$X$34,"",FORMULARIO!T26))))))))))))))) ->  | L32: =+IF(B32="","",IF(FORMULARIO!V26="","",IF(B32=$X$22,"",IF(B32=$X$23,"",IF(B32=$X$24,"",IF(B32=$X$25,"",IF(B32=$X$26,"",IF(B32=$X$27,"",IF(B32=$X$28,"",IF(B32=$X$29,"",IF(B32=$X$30,"",IF(B32=$X$31,"",IF(B32=$X$32,"",IF(B32=$X$33,"",IF(B32=$X$34,"",FORMULARIO!V26))))))))))))))) ->  | O32: 0 | P32: =FORMULARIO!Y26 -> 0 | X32: ZAMBITO
A33: =+FORMULARIO!A27 ->  | B33: =+IF(FORMULARIO!B27="","",FORMULARIO!B27) ->  | C33: =+IF(B33="","",IF(FORMULARIO!D27="","",IF(B33=$X$33,"",FORMULARIO!D27))) ->  | D33: =+IF(B33="","",IF(FORMULARIO!F27="","",FORMULARIO!F27)) ->  | E33: =+IF(B33="","",IF(FORMULARIO!H27="","",FORMULARIO!H27)) ->  | F33: =+IF(B33="","",IF(FORMULARIO!J27="","",FORMULARIO!J27)) ->  | G33: =+IF(B33="","",IF(FORMULARIO!L27="","",FORMULARIO!L27)) ->  | H33: =+IF(B33="","",IF(FORMULARIO!N27="","",FORMULARIO!N27)) ->  | I33: =+IF(B33="","",IF(FORMULARIO!P27="","",FORMULARIO!P27)) ->  | J33: =+IF(B33="","",IF(FORMULARIO!R27="","",FORMULARIO!R27)) ->  | K33: =+IF(B33="","",IF(FORMULARIO!T27="","",IF(B33=$X$22,"",IF(B33=$X$23,"",IF(B33=$X$24,"",IF(B33=$X$25,"",IF(B33=$X$26,"",IF(B33=$X$27,"",IF(B33=$X$28,"",IF(B33=$X$29,"",IF(B33=$X$30,"",IF(B33=$X$31,"",IF(B33=$X$32,"",IF(B33=$X$33,"",IF(B33=$X$34,"",FORMULARIO!T27))))))))))))))) ->  | L33: =+IF(B33="","",IF(FORMULARIO!V27="","",IF(B33=$X$22,"",IF(B33=$X$23,"",IF(B33=$X$24,"",IF(B33=$X$25,"",IF(B33=$X$26,"",IF(B33=$X$27,"",IF(B33=$X$28,"",IF(B33=$X$29,"",IF(B33=$X$30,"",IF(B33=$X$31,"",IF(B33=$X$32,"",IF(B33=$X$33,"",IF(B33=$X$34,"",FORMULARIO!V27))))))))))))))) ->  | O33: 0 | P33: =FORMULARIO!Y27 -> 0 | X33: SAN JUAN
A34: =+FORMULARIO!A28 ->  | B34: =+IF(FORMULARIO!B28="","",FORMULARIO!B28) ->  | C34: =+IF(B34="","",IF(FORMULARIO!D28="","",IF(B34=$X$33,"",FORMULARIO!D28))) ->  | D34: =+IF(B34="","",IF(FORMULARIO!F28="","",FORMULARIO!F28)) ->  | E34: =+IF(B34="","",IF(FORMULARIO!H28="","",FORMULARIO!H28)) ->  | F34: =+IF(B34="","",IF(FORMULARIO!J28="","",FORMULARIO!J28)) ->  | G34: =+IF(B34="","",IF(FORMULARIO!L28="","",FORMULARIO!L28)) ->  | H34: =+IF(B34="","",IF(FORMULARIO!N28="","",FORMULARIO!N28)) ->  | I34: =+IF(B34="","",IF(FORMULARIO!P28="","",FORMULARIO!P28)) ->  | J34: =+IF(B34="","",IF(FORMULARIO!R28="","",FORMULARIO!R28)) ->  | K34: =+IF(B34="","",IF(FORMULARIO!T28="","",IF(B34=$X$22,"",IF(B34=$X$23,"",IF(B34=$X$24,"",IF(B34=$X$25,"",IF(B34=$X$26,"",IF(B34=$X$27,"",IF(B34=$X$28,"",IF(B34=$X$29,"",IF(B34=$X$30,"",IF(B34=$X$31,"",IF(B34=$X$32,"",IF(B34=$X$33,"",IF(B34=$X$34,"",FORMULARIO!T28))))))))))))))) ->  | L34: =+IF(B34="","",IF(FORMULARIO!V28="","",IF(B34=$X$22,"",IF(B34=$X$23,"",IF(B34=$X$24,"",IF(B34=$X$25,"",IF(B34=$X$26,"",IF(B34=$X$27,"",IF(B34=$X$28,"",IF(B34=$X$29,"",IF(B34=$X$30,"",IF(B34=$X$31,"",IF(B34=$X$32,"",IF(B34=$X$33,"",IF(B34=$X$34,"",FORMULARIO!V28))))))))))))))) ->  | O34: 0 | P34: =FORMULARIO!Y28 -> 0 | X34: LOBOGUERRERO
A35: =+FORMULARIO!A29 ->  | B35: =+IF(FORMULARIO!B29="","",FORMULARIO!B29) ->  | C35: =+IF(B35="","",IF(FORMULARIO!D29="","",IF(B35=$X$33,"",FORMULARIO!D29))) ->  | D35: =+IF(B35="","",IF(FORMULARIO!F29="","",FORMULARIO!F29)) ->  | E35: =+IF(B35="","",IF(FORMULARIO!H29="","",FORMULARIO!H29)) ->  | F35: =+IF(B35="","",IF(FORMULARIO!J29="","",FORMULARIO!J29)) ->  | G35: =+IF(B35="","",IF(FORMULARIO!L29="","",FORMULARIO!L29)) ->  | H35: =+IF(B35="","",IF(FORMULARIO!N29="","",FORMULARIO!N29)) ->  | I35: =+IF(B35="","",IF(FORMULARIO!P29="","",FORMULARIO!P29)) ->  | J35: =+IF(B35="","",IF(FORMULARIO!R29="","",FORMULARIO!R29)) ->  | K35: =+IF(B35="","",IF(FORMULARIO!T29="","",IF(B35=$X$22,"",IF(B35=$X$23,"",IF(B35=$X$24,"",IF(B35=$X$25,"",IF(B35=$X$26,"",IF(B35=$X$27,"",IF(B35=$X$28,"",IF(B35=$X$29,"",IF(B35=$X$30,"",IF(B35=$X$31,"",IF(B35=$X$32,"",IF(B35=$X$33,"",IF(B35=$X$34,"",FORMULARIO!T29))))))))))))))) ->  | L35: =+IF(B35="","",IF(FORMULARIO!V29="","",IF(B35=$X$22,"",IF(B35=$X$23,"",IF(B35=$X$24,"",IF(B35=$X$25,"",IF(B35=$X$26,"",IF(B35=$X$27,"",IF(B35=$X$28,"",IF(B35=$X$29,"",IF(B35=$X$30,"",IF(B35=$X$31,"",IF(B35=$X$32,"",IF(B35=$X$33,"",IF(B35=$X$34,"",FORMULARIO!V29))))))))))))))) ->  | O35: 0 | P35: =FORMULARIO!Y29 -> 0 | X35: LA PARADA
A36: =+FORMULARIO!A30 ->  | B36: =+IF(FORMULARIO!B30="","",FORMULARIO!B30) ->  | C36: =+IF(B36="","",IF(FORMULARIO!D30="","",IF(B36=$X$33,"",FORMULARIO!D30))) ->  | D36: =+IF(B36="","",IF(FORMULARIO!F30="","",FORMULARIO!F30)) ->  | E36: =+IF(B36="","",IF(FORMULARIO!H30="","",FORMULARIO!H30)) ->  | F36: =+IF(B36="","",IF(FORMULARIO!J30="","",FORMULARIO!J30)) ->  | G36: =+IF(B36="","",IF(FORMULARIO!L30="","",FORMULARIO!L30)) ->  | H36: =+IF(B36="","",IF(FORMULARIO!N30="","",FORMULARIO!N30)) ->  | I36: =+IF(B36="","",IF(FORMULARIO!P30="","",FORMULARIO!P30)) ->  | J36: =+IF(B36="","",IF(FORMULARIO!R30="","",FORMULARIO!R30)) ->  | K36: =+IF(B36="","",IF(FORMULARIO!T30="","",IF(B36=$X$22,"",IF(B36=$X$23,"",IF(B36=$X$24,"",IF(B36=$X$25,"",IF(B36=$X$26,"",IF(B36=$X$27,"",IF(B36=$X$28,"",IF(B36=$X$29,"",IF(B36=$X$30,"",IF(B36=$X$31,"",IF(B36=$X$32,"",IF(B36=$X$33,"",IF(B36=$X$34,"",FORMULARIO!T30))))))))))))))) ->  | L36: =+IF(B36="","",IF(FORMULARIO!V30="","",IF(B36=$X$22,"",IF(B36=$X$23,"",IF(B36=$X$24,"",IF(B36=$X$25,"",IF(B36=$X$26,"",IF(B36=$X$27,"",IF(B36=$X$28,"",IF(B36=$X$29,"",IF(B36=$X$30,"",IF(B36=$X$31,"",IF(B36=$X$32,"",IF(B36=$X$33,"",IF(B36=$X$34,"",FORMULARIO!V30))))))))))))))) ->  | O36: 0 | P36: =FORMULARIO!Y30 -> 0 | X36: EL KORAN
A37: =+FORMULARIO!A31 ->  | B37: =+IF(FORMULARIO!B31="","",FORMULARIO!B31) ->  | C37: =+IF(B37="","",IF(FORMULARIO!D31="","",IF(B37=$X$33,"",FORMULARIO!D31))) ->  | D37: =+IF(B37="","",IF(FORMULARIO!F31="","",FORMULARIO!F31)) ->  | E37: =+IF(B37="","",IF(FORMULARIO!H31="","",FORMULARIO!H31)) ->  | F37: =+IF(B37="","",IF(FORMULARIO!J31="","",FORMULARIO!J31)) ->  | G37: =+IF(B37="","",IF(FORMULARIO!L31="","",FORMULARIO!L31)) ->  | H37: =+IF(B37="","",IF(FORMULARIO!N31="","",FORMULARIO!N31)) ->  | I37: =+IF(B37="","",IF(FORMULARIO!P31="","",FORMULARIO!P31)) ->  | J37: =+IF(B37="","",IF(FORMULARIO!R31="","",FORMULARIO!R31)) ->  | K37: =+IF(B37="","",IF(FORMULARIO!T31="","",IF(B37=$X$22,"",IF(B37=$X$23,"",IF(B37=$X$24,"",IF(B37=$X$25,"",IF(B37=$X$26,"",IF(B37=$X$27,"",IF(B37=$X$28,"",IF(B37=$X$29,"",IF(B37=$X$30,"",IF(B37=$X$31,"",IF(B37=$X$32,"",IF(B37=$X$33,"",IF(B37=$X$34,"",FORMULARIO!T31))))))))))))))) ->  | L37: =+IF(B37="","",IF(FORMULARIO!V31="","",IF(B37=$X$22,"",IF(B37=$X$23,"",IF(B37=$X$24,"",IF(B37=$X$25,"",IF(B37=$X$26,"",IF(B37=$X$27,"",IF(B37=$X$28,"",IF(B37=$X$29,"",IF(B37=$X$30,"",IF(B37=$X$31,"",IF(B37=$X$32,"",IF(B37=$X$33,"",IF(B37=$X$34,"",FORMULARIO!V31))))))))))))))) ->  | O37: 0 | P37: =FORMULARIO!Y31 -> 0 | Y37: 2023 | AA37: 2024
A38: =+FORMULARIO!A32 ->  | B38: =+IF(FORMULARIO!B32="","",FORMULARIO!B32) ->  | C38: =+IF(B38="","",IF(FORMULARIO!D32="","",IF(B38=$X$33,"",FORMULARIO!D32))) ->  | D38: =+IF(B38="","",IF(FORMULARIO!F32="","",FORMULARIO!F32)) ->  | E38: =+IF(B38="","",IF(FORMULARIO!H32="","",FORMULARIO!H32)) ->  | F38: =+IF(B38="","",IF(FORMULARIO!J32="","",FORMULARIO!J32)) ->  | G38: =+IF(B38="","",IF(FORMULARIO!L32="","",FORMULARIO!L32)) ->  | H38: =+IF(B38="","",IF(FORMULARIO!N32="","",FORMULARIO!N32)) ->  | I38: =+IF(B38="","",IF(FORMULARIO!P32="","",FORMULARIO!P32)) ->  | J38: =+IF(B38="","",IF(FORMULARIO!R32="","",FORMULARIO!R32)) ->  | K38: =+IF(B38="","",IF(FORMULARIO!T32="","",IF(B38=$X$22,"",IF(B38=$X$23,"",IF(B38=$X$24,"",IF(B38=$X$25,"",IF(B38=$X$26,"",IF(B38=$X$27,"",IF(B38=$X$28,"",IF(B38=$X$29,"",IF(B38=$X$30,"",IF(B38=$X$31,"",IF(B38=$X$32,"",IF(B38=$X$33,"",IF(B38=$X$34,"",FORMULARIO!T32))))))))))))))) ->  | L38: =+IF(B38="","",IF(FORMULARIO!V32="","",IF(B38=$X$22,"",IF(B38=$X$23,"",IF(B38=$X$24,"",IF(B38=$X$25,"",IF(B38=$X$26,"",IF(B38=$X$27,"",IF(B38=$X$28,"",IF(B38=$X$29,"",IF(B38=$X$30,"",IF(B38=$X$31,"",IF(B38=$X$32,"",IF(B38=$X$33,"",IF(B38=$X$34,"",FORMULARIO!V32))))))))))))))) ->  | O38: 0 | P38: =FORMULARIO!Y32 -> 0 | Y38: 22000 | Z38: =13.12%+9.28%+5.2% -> 27.60% | AA38: =+ROUND(Y38*(1+Z38),-2) -> 28,100.00
A39: =+FORMULARIO!A33 ->  | B39: =+IF(FORMULARIO!B33="","",FORMULARIO!B33) ->  | C39: =+IF(B39="","",IF(FORMULARIO!D33="","",IF(B39=$X$33,"",FORMULARIO!D33))) ->  | D39: =+IF(B39="","",IF(FORMULARIO!F33="","",FORMULARIO!F33)) ->  | E39: =+IF(B39="","",IF(FORMULARIO!H33="","",FORMULARIO!H33)) ->  | F39: =+IF(B39="","",IF(FORMULARIO!J33="","",FORMULARIO!J33)) ->  | G39: =+IF(B39="","",IF(FORMULARIO!L33="","",FORMULARIO!L33)) ->  | H39: =+IF(B39="","",IF(FORMULARIO!N33="","",FORMULARIO!N33)) ->  | I39: =+IF(B39="","",IF(FORMULARIO!P33="","",FORMULARIO!P33)) ->  | J39: =+IF(B39="","",IF(FORMULARIO!R33="","",FORMULARIO!R33)) ->  | K39: =+IF(B39="","",IF(FORMULARIO!T33="","",IF(B39=$X$22,"",IF(B39=$X$23,"",IF(B39=$X$24,"",IF(B39=$X$25,"",IF(B39=$X$26,"",IF(B39=$X$27,"",IF(B39=$X$28,"",IF(B39=$X$29,"",IF(B39=$X$30,"",IF(B39=$X$31,"",IF(B39=$X$32,"",IF(B39=$X$33,"",IF(B39=$X$34,"",FORMULARIO!T33))))))))))))))) ->  | L39: =+IF(B39="","",IF(FORMULARIO!V33="","",IF(B39=$X$22,"",IF(B39=$X$23,"",IF(B39=$X$24,"",IF(B39=$X$25,"",IF(B39=$X$26,"",IF(B39=$X$27,"",IF(B39=$X$28,"",IF(B39=$X$29,"",IF(B39=$X$30,"",IF(B39=$X$31,"",IF(B39=$X$32,"",IF(B39=$X$33,"",IF(B39=$X$34,"",FORMULARIO!V33))))))))))))))) ->  | O39: 0 | P39: =FORMULARIO!Y33 -> 0
B40: TOTAL | C40: =SUM(C22:C39) -> 0 | D40: 0 | E40: 0 | F40: 0 | G40: 0 | H40: 0 | I40: 0 | J40: 0 | K40: 0 | L40: 0 | O40: =SUM(O22:O39) -> 0 | P40: =SUM(P22:P39) -> 0
Y41: 2023 | AA41: 2024
C42: CONSIGNACION | F42: Consignación Local | O42: Valor Total Tiquetes | P42: =+FORMULARIO!$Y$46 -> 0 | W42: 0 | X42: Consignación Local | Y42: 0 | Z42: =13.12%+9.28% -> 22.40% | AA42: =+ROUND(Y42*(1+Z42),-2) -> 0
X43: Consignación Nacional | Y43: $ 15,000 | Z43: =13.12%+9.28%+5.2% -> 27.60% | AA43: =+ROUND(Y43*(1+Z43),-2) -> 19,100.00
O44: Gastos Bancarios | P44: =IF(F42="",0,IF(F42="Consignación Local",AA42,IF(F42="Consignación Nacional",AA43))) -> 0
B46: Firma del Cliente | O46: Gastos de Envio | P46: =IF(P42>0,AA38,0) -> 0
O48: Valor Total a Pagar | P48: =SUM(P42:P46) -> 0
B49: DATOS PARA CONSIGNACION
B51: Entidad Bancaria | C51: BANCOLOMBIA | N51: Cuenta de Ahorros No. | P51: 031-0001021-0
B53: Nombre del Titular: | C53: PA FIDUCIARIA BANCOLOMBIA SA SOCIEDAD FIDUCIARIA | N53: NIT. | P53: 830.054.539
A55: PEGAR CONSIGNACION
